Department,Entity,Date of Payment,Expense Type,Expense Area,Supplier,Transaction Number, Net Total 
"Department for Business, Innovation and Skills","Department for Business, Innovation and Skills",01/02/2011,Non-Grant in Aid Funding of Bodies (Departmental and Non-Departmental),Market and Frameworks Group - Employment Relations,ACAS,1017780,4800000
"Department for Business, Innovation and Skills","Department for Business, Innovation and Skills",01/02/2011,Season Ticket and Bicycle Loans,"Legal, People & Communications Group - HRCM - Human Resources and Change Management Directorate",DEPARTMENT FOR COMMUNITIES AND LOCAL GOVERNMENT,1017744,767.64
"Department for Business, Innovation and Skills","Department for Business, Innovation and Skills",01/02/2011,Season Ticket and Bicycle Loans,"Legal, People & Communications Group - HRCM - Human Resources and Change Management Directorate",DEPARTMENT FOR COMMUNITIES AND LOCAL GOVERNMENT,1017745,3632.33
"Department for Business, Innovation and Skills","Department for Business, Innovation and Skills",01/02/2011,Outsourced Technical Support (Programme),Knowledge and Innovation Group - UK Space Agency,DOCTOR SAM HARBISON,1017985,525
"Department for Business, Innovation and Skills","Department for Business, Innovation and Skills",01/02/2011,Criminal Law and Prosecution Work,"Legal, People & Communications Group - Legal",HM LAND REGISTRY,1018092,84
"Department for Business, Innovation and Skills","Department for Business, Innovation and Skills",01/02/2011,Maintenance (Programme),Finance & Commercial Group - Information and Workplace Strategies,CHUBB FIRE LTD,1017945,229.33
"Department for Business, Innovation and Skills","Department for Business, Innovation and Skills",01/02/2011,Other Accommodation Charges (Programme),Finance & Commercial Group - Information and Workplace Strategies,FIELD FISHER WATERHOUSE,1017980,930
"Department for Business, Innovation and Skills","Department for Business, Innovation and Skills",01/02/2011,Other Accommodation Charges (Programme),Finance & Commercial Group - Information and Workplace Strategies,FIELD FISHER WATERHOUSE,1017981,1211.8
"Department for Business, Innovation and Skills","Department for Business, Innovation and Skills",01/02/2011,Other Accommodation Charges (Programme),Finance & Commercial Group - Information and Workplace Strategies,FIELD FISHER WATERHOUSE,1017982,6136.9
"Department for Business, Innovation and Skills","Department for Business, Innovation and Skills",01/02/2011,Other Accommodation Charges (Programme),Finance & Commercial Group - Information and Workplace Strategies,FIELD FISHER WATERHOUSE,1017982,21.08
"Department for Business, Innovation and Skills","Department for Business, Innovation and Skills",01/02/2011,Other Accommodation Charges (Programme),Finance & Commercial Group - Information and Workplace Strategies,FIELD FISHER WATERHOUSE,1017983,2988.56
"Department for Business, Innovation and Skills","Department for Business, Innovation and Skills",01/02/2011,Other Accommodation Charges (Programme),Finance & Commercial Group - Information and Workplace Strategies,FIELD FISHER WATERHOUSE,1017983,74.06
"Department for Business, Innovation and Skills","Department for Business, Innovation and Skills",01/02/2011,Other Accommodation Charges (Programme),Finance & Commercial Group - Information and Workplace Strategies,FIELD FISHER WATERHOUSE,1017984,2029
"Department for Business, Innovation and Skills","Department for Business, Innovation and Skills",01/02/2011,Other Accommodation Charges (Programme),Finance & Commercial Group - Information and Workplace Strategies,IDEAL CLEANING SERVICES LTD,1017989,4431.96
"Department for Business, Innovation and Skills","Department for Business, Innovation and Skills",01/02/2011,Other Accommodation Charges (Programme),Finance & Commercial Group - Information and Workplace Strategies,PROGRAMMED CLEANING & SUPPORT SERVICES LTD,1017990,357.5
"Department for Business, Innovation and Skills","Department for Business, Innovation and Skills",01/02/2011,Water (Programme),Finance & Commercial Group - Information and Workplace Strategies,THAMES WATER UTILITIES LTD,1017992,292.46
"Department for Business, Innovation and Skills","Department for Business, Innovation and Skills",01/02/2011,Water (Programme),Finance & Commercial Group - Information and Workplace Strategies,THAMES WATER UTILITIES LTD,1017992,608.24
"Department for Business, Innovation and Skills","Department for Business, Innovation and Skills",01/02/2011,Other Accommodation Charges (Programme),Finance & Commercial Group - Information and Workplace Strategies,OCS GROUP UK LTD t/a CANNON,1017993,373.23
"Department for Business, Innovation and Skills","Department for Business, Innovation and Skills",01/02/2011,Other Accommodation Charges (Programme),Finance & Commercial Group - Information and Workplace Strategies,OCS GROUP UK LTD t/a CANNON,1017993,83.46
"Department for Business, Innovation and Skills","Department for Business, Innovation and Skills",01/02/2011,Other Accommodation Charges (Programme),Finance & Commercial Group - Information and Workplace Strategies,CRYSTAL SERVICES PLC,1018002,65.17
"Department for Business, Innovation and Skills","Department for Business, Innovation and Skills",01/02/2011,Other Accommodation Charges (Programme),Finance & Commercial Group - Information and Workplace Strategies,K CLEANING SERVICES,1018006,1011.71
"Department for Business, Innovation and Skills","Department for Business, Innovation and Skills",01/02/2011,Maintenance (Programme),Finance & Commercial Group - Information and Workplace Strategies,RENTOKIL INITIAL UK LTD T/A RENTOKIL PEST CONTROL,1018008,866.39
"Department for Business, Innovation and Skills","Department for Business, Innovation and Skills",01/02/2011,Gas (Programme),Finance & Commercial Group - Information and Workplace Strategies,E-ON ENERGY LTD,1018045,131.89
"Department for Business, Innovation and Skills","Department for Business, Innovation and Skills",01/02/2011,Project Management Costs (Programme),Market and Frameworks Group - Europe and World Trade Directorates,JOHN MULHOLLAND,1017951,306.45
"Department for Business, Innovation and Skills","Department for Business, Innovation and Skills",01/02/2011,Outsourced Technical Support (Programme),Business & Skills Group - Enterprise Directorate,BETA TECHNOLOGY LTD,1018040,29067.64
"Department for Business, Innovation and Skills","Department for Business, Innovation and Skills",01/02/2011,Publications (Programme),Chief Economic Advisor &BRE Group - Strategic Policy Analysis,BLOOMBERG FINANCE L.P.,1017638,38.68
"Department for Business, Innovation and Skills","Department for Business, Innovation and Skills",01/02/2011,Taxis,Business & Skills Group - Advanced Manufacturing Industries,"Personal Expense, Name Witheld.",10275439,12
"Department for Business, Innovation and Skills","Department for Business, Innovation and Skills",01/02/2011,Other UK Travel & Subsistence,Business & Skills Group - Advanced Manufacturing Industries,"Personal Expense, Name Witheld.",10275439,3.9
"Department for Business, Innovation and Skills","Department for Business, Innovation and Skills",01/02/2011,Telecommunications,Business & Skills Group - Advanced Manufacturing Industries,VODAFONE LTD,1017825,6.97
"Department for Business, Innovation and Skills","Department for Business, Innovation and Skills",01/02/2011,Telecommunications,Business & Skills Group - Advanced Manufacturing Industries,VODAFONE LTD,1017825,56.58
"Department for Business, Innovation and Skills","Department for Business, Innovation and Skills",01/02/2011,Telecommunications,Business & Skills Group - Advanced Manufacturing Industries,VODAFONE LTD,1017827,52.26
"Department for Business, Innovation and Skills","Department for Business, Innovation and Skills",01/02/2011,Mobile Phones,Business & Skills Group - Advanced Manufacturing Industries,VODAFONE LTD,1017827,10.34
"Department for Business, Innovation and Skills","Department for Business, Innovation and Skills",01/02/2011,Telecommunications,Business & Skills Group - Advanced Manufacturing Industries,VODAFONE LTD,1017965,12.93
"Department for Business, Innovation and Skills","Department for Business, Innovation and Skills",01/02/2011,Telecommunications,Business & Skills Group - Advanced Manufacturing Industries,VODAFONE LTD,1017965,6.97
"Department for Business, Innovation and Skills","Department for Business, Innovation and Skills",01/02/2011,Telecommunications,Business & Skills Group - Advanced Manufacturing Industries,VODAFONE LTD,1017967,6.59
"Department for Business, Innovation and Skills","Department for Business, Innovation and Skills",01/02/2011,Telecommunications,Business & Skills Group - Advanced Manufacturing Industries,VODAFONE LTD,1017967,6.97
"Department for Business, Innovation and Skills","Department for Business, Innovation and Skills",01/02/2011,Telecommunications,Business & Skills Group - Advanced Manufacturing Industries,VODAFONE LTD,1017970,14.46
"Department for Business, Innovation and Skills","Department for Business, Innovation and Skills",01/02/2011,Telecommunications,Business & Skills Group - Advanced Manufacturing Industries,VODAFONE LTD,1017970,6.97
"Department for Business, Innovation and Skills","Department for Business, Innovation and Skills",01/02/2011,Telecommunications,Business & Skills Group - Advanced Manufacturing Industries,VODAFONE LTD,1017970,0.25
"Department for Business, Innovation and Skills","Department for Business, Innovation and Skills",01/02/2011,Rail Fares,Business & Skills Group - Economic Development Directorate,"Personal Expense, Name Witheld.",10275440,18
"Department for Business, Innovation and Skills","Department for Business, Innovation and Skills",01/02/2011,Taxis Overseas,Business & Skills Group - Economic Development Directorate,"Personal Expense, Name Witheld.",10275440,24.6
"Department for Business, Innovation and Skills","Department for Business, Innovation and Skills",01/02/2011,Subsistence Payments Overseas,Business & Skills Group - Economic Development Directorate,"Personal Expense, Name Witheld.",10275440,8.19
"Department for Business, Innovation and Skills","Department for Business, Innovation and Skills",01/02/2011,Other Overseas Travel & Subsistence,Business & Skills Group - Economic Development Directorate,"Personal Expense, Name Witheld.",10275440,13
"Department for Business, Innovation and Skills","Department for Business, Innovation and Skills",01/02/2011,Coaching,Business & Skills Group - Enterprise Directorate,LEARNLAB LTD,1017934,533.3
"Department for Business, Innovation and Skills","Department for Business, Innovation and Skills",01/02/2011,Mileage Allowances,Business & Skills Group - Enterprise Directorate,"Personal Expense, Name Witheld.",10275438,123.2
"Department for Business, Innovation and Skills","Department for Business, Innovation and Skills",01/02/2011,Subsistence Payments,Business & Skills Group - Enterprise Directorate,"Personal Expense, Name Witheld.",10275438,10
"Department for Business, Innovation and Skills","Department for Business, Innovation and Skills",01/02/2011,Rail Fares,Business & Skills Group - Information Economy,"Personal Expense, Name Witheld.",10275444,189
"Department for Business, Innovation and Skills","Department for Business, Innovation and Skills",01/02/2011,Rail Fares Overseas,Business & Skills Group - Information Economy,"Personal Expense, Name Witheld.",10275444,10.6
"Department for Business, Innovation and Skills","Department for Business, Innovation and Skills",01/02/2011,Hotels Overseas,Business & Skills Group - Information Economy,"Personal Expense, Name Witheld.",10275444,86.2
"Department for Business, Innovation and Skills","Department for Business, Innovation and Skills",01/02/2011,Subsistence Payments Overseas,Business & Skills Group - Information Economy,"Personal Expense, Name Witheld.",10275444,10.73
"Department for Business, Innovation and Skills","Department for Business, Innovation and Skills",01/02/2011,Other Overseas Travel & Subsistence,Business & Skills Group - Information Economy,"Personal Expense, Name Witheld.",10275444,10.01
"Department for Business, Innovation and Skills","Department for Business, Innovation and Skills",01/02/2011,Economic Consultancy & Research,Business & Skills Group - Life Sciences,CELS BUSINESS SERVICES LTD,1017927,20394
"Department for Business, Innovation and Skills","Department for Business, Innovation and Skills",01/02/2011,Economic Consultancy & Research,Business & Skills Group - Life Sciences,CELS BUSINESS SERVICES LTD,1017927,5350
"Department for Business, Innovation and Skills","Department for Business, Innovation and Skills",01/02/2011,Other Services,Business & Skills Group - USG Admin,ROGER MCCLURE,1018024,373.46
"Department for Business, Innovation and Skills","Department for Business, Innovation and Skills",01/02/2011,Corporate Management Consultancy,Chief Economic Advisor &BRE Group - Better Regulation Executive (BRE),SIR DONALD CURRY,1018036,5634
"Department for Business, Innovation and Skills","Department for Business, Innovation and Skills",01/02/2011,Taxis,Finance & Commercial Group - Finance Group,HUDSONS TAXIS,1018048,113
"Department for Business, Innovation and Skills","Department for Business, Innovation and Skills",01/02/2011,Taxis,Finance & Commercial Group - Finance Group,HUDSONS TAXIS,1018048,82
"Department for Business, Innovation and Skills","Department for Business, Innovation and Skills",01/02/2011,Other Training Costs,Finance & Commercial Group - Finance Group,ISACA,1017754,1543.17
"Department for Business, Innovation and Skills","Department for Business, Innovation and Skills",01/02/2011,Other Training Costs,Finance & Commercial Group - Finance Group,ISACA,1017756,1543.17
"Department for Business, Innovation and Skills","Department for Business, Innovation and Skills",01/02/2011,Other Training Costs,Finance & Commercial Group - Finance Group,ISACA,1017757,1543.17
"Department for Business, Innovation and Skills","Department for Business, Innovation and Skills",01/02/2011,Mobile Phones,Finance & Commercial Group - Finance Group,VODAFONE LTD,1017930,5.81
"Department for Business, Innovation and Skills","Department for Business, Innovation and Skills",01/02/2011,Mobile Phones,Finance & Commercial Group - Finance Group,VODAFONE LTD,1017930,16.28
"Department for Business, Innovation and Skills","Department for Business, Innovation and Skills",01/02/2011,Other Accommodation Charges,Knowledge and Innovation Group - Innovation,PHONOGRAPHIC PERFORMANCE LTD,1018033,122.27
"Department for Business, Innovation and Skills","Department for Business, Innovation and Skills",01/02/2011,Subsistence Payments Overseas,Knowledge and Innovation Group - Research Base,FOREIGN AND COMMONWEALTH OFFICE (FCO),1015306,4.64
"Department for Business, Innovation and Skills","Department for Business, Innovation and Skills",01/02/2011,Rail Fares Overseas,Knowledge and Innovation Group - Research Base,"Personal Expense, Name Witheld.",10275443,5.15
"Department for Business, Innovation and Skills","Department for Business, Innovation and Skills",01/02/2011,Subsistence Payments Overseas,Knowledge and Innovation Group - Research Base,"Personal Expense, Name Witheld.",10275443,63.01
"Department for Business, Innovation and Skills","Department for Business, Innovation and Skills",01/02/2011,Other Overseas Travel & Subsistence,Knowledge and Innovation Group - Research Base,"Personal Expense, Name Witheld.",10275443,20.03
"Department for Business, Innovation and Skills","Department for Business, Innovation and Skills",01/02/2011,Other UK Travel & Subsistence,Knowledge and Innovation Group - Research Base,"Personal Expense, Name Witheld.",10275445,2.2
"Department for Business, Innovation and Skills","Department for Business, Innovation and Skills",01/02/2011,Rail Fares Overseas,Knowledge and Innovation Group - Research Base,"Personal Expense, Name Witheld.",10275445,2.96
"Department for Business, Innovation and Skills","Department for Business, Innovation and Skills",01/02/2011,Subsistence Payments Overseas,Knowledge and Innovation Group - Research Base,"Personal Expense, Name Witheld.",10275445,43.61
"Department for Business, Innovation and Skills","Department for Business, Innovation and Skills",01/02/2011,Rail Fares,Knowledge and Innovation Group - Research Base,"Personal Expense, Name Witheld.",10275446,3.9
"Department for Business, Innovation and Skills","Department for Business, Innovation and Skills",01/02/2011,Other UK Travel & Subsistence,Knowledge and Innovation Group - Research Base,"Personal Expense, Name Witheld.",10275446,6.69
"Department for Business, Innovation and Skills","Department for Business, Innovation and Skills",01/02/2011,Hotels Overseas,Knowledge and Innovation Group - Research Base,"Personal Expense, Name Witheld.",10275446,76.92
"Department for Business, Innovation and Skills","Department for Business, Innovation and Skills",01/02/2011,Subsistence Payments Overseas,Knowledge and Innovation Group - Research Base,"Personal Expense, Name Witheld.",10275446,10
"Department for Business, Innovation and Skills","Department for Business, Innovation and Skills",01/02/2011,Rail Fares,Knowledge and Innovation Group - Research Base,"Personal Expense, Name Witheld.",10275451,75.55
"Department for Business, Innovation and Skills","Department for Business, Innovation and Skills",01/02/2011,Taxis,Knowledge and Innovation Group - Research Base,"Personal Expense, Name Witheld.",10275451,9
"Department for Business, Innovation and Skills","Department for Business, Innovation and Skills",01/02/2011,Other UK Travel & Subsistence,Knowledge and Innovation Group - Research Base,"Personal Expense, Name Witheld.",10275451,1.7
"Department for Business, Innovation and Skills","Department for Business, Innovation and Skills",01/02/2011,Hire of Agency Staff (Clerical/Secretariat/Other),"Legal, People & Communications Group - Communications Directorate",ADECCO UK LTD,1018016,691.01
"Department for Business, Innovation and Skills","Department for Business, Innovation and Skills",01/02/2011,Hire of Agency Staff (Clerical/Secretariat/Other),"Legal, People & Communications Group - Communications Directorate",ADECCO UK LTD,1018019,625.91
"Department for Business, Innovation and Skills","Department for Business, Innovation and Skills",01/02/2011,Media Services,"Legal, People & Communications Group - Communications Directorate",GORKANA LTD,1018029,7000
"Department for Business, Innovation and Skills","Department for Business, Innovation and Skills",01/02/2011,Telecommunications,"Legal, People & Communications Group - HRCM - Human Resources and Change Management Directorate",VODAFONE LTD,1017135,41.83
"Department for Business, Innovation and Skills","Department for Business, Innovation and Skills",01/02/2011,Telecommunications,"Legal, People & Communications Group - HRCM - Human Resources and Change Management Directorate",VODAFONE LTD,1017135,81.64
"Department for Business, Innovation and Skills","Department for Business, Innovation and Skills",01/02/2011,Telecommunications,"Legal, People & Communications Group - HRCM - Human Resources and Change Management Directorate",VODAFONE LTD,1017135,34.84
"Department for Business, Innovation and Skills","Department for Business, Innovation and Skills",01/02/2011,Telecommunications,"Legal, People & Communications Group - HRCM - Human Resources and Change Management Directorate",VODAFONE LTD,1017158,6.97
"Department for Business, Innovation and Skills","Department for Business, Innovation and Skills",01/02/2011,Telecommunications,"Legal, People & Communications Group - HRCM - Human Resources and Change Management Directorate",VODAFONE LTD,1017158,0.22
"Department for Business, Innovation and Skills","Department for Business, Innovation and Skills",01/02/2011,Mobile Phones,"Legal, People & Communications Group - Legal",VODAFONE LTD,1018021,7.34
"Department for Business, Innovation and Skills","Department for Business, Innovation and Skills",01/02/2011,Mobile Phones,"Legal, People & Communications Group - Legal",VODAFONE LTD,1018021,13.03
"Department for Business, Innovation and Skills","Department for Business, Innovation and Skills",01/02/2011,Hire of Agency Staff (Professional/Management),"Legal, People & Communications Group - Legal",BADENOCH AND CLARK LTD,1018051,1875
"Department for Business, Innovation and Skills","Department for Business, Innovation and Skills",01/02/2011,Postage,"Legal, People & Communications Group - Legal",PITNEY BOWES PURCHASE POWER A TRADING DIVISION OF PITNEY BOWES LTD,1018043,105.5
"Department for Business, Innovation and Skills","Department for Business, Innovation and Skills",01/02/2011,Other Overseas Travel & Subsistence,Market and Frameworks Group - Europe and World Trade Directorates,FOREIGN AND COMMONWEALTH OFFICE (FCO),1015282,392.48
"Department for Business, Innovation and Skills","Department for Business, Innovation and Skills",01/02/2011,Other Overseas Travel & Subsistence,Market and Frameworks Group - Europe and World Trade Directorates,FOREIGN AND COMMONWEALTH OFFICE (FCO),1015284,33.82
"Department for Business, Innovation and Skills","Department for Business, Innovation and Skills",01/02/2011,Rail Fares Overseas,Market and Frameworks Group - Europe and World Trade Directorates,"Personal Expense, Name Witheld.",10275442,6.29
"Department for Business, Innovation and Skills","Department for Business, Innovation and Skills",01/02/2011,Subsistence Payments Overseas,Market and Frameworks Group - Europe and World Trade Directorates,"Personal Expense, Name Witheld.",10275442,14.4
"Department for Business, Innovation and Skills","Department for Business, Innovation and Skills",01/02/2011,Other Overseas Travel & Subsistence,Market and Frameworks Group - Europe and World Trade Directorates,"Personal Expense, Name Witheld.",10275442,4.91
"Department for Business, Innovation and Skills","Department for Business, Innovation and Skills",01/02/2011,Taxis,Market and Frameworks Group - Europe and World Trade Directorates,HUDSONS TAXIS,1018048,44
"Department for Business, Innovation and Skills","Department for Business, Innovation and Skills",01/02/2011,Hire of Agency Staff (Clerical/Secretariat/Other),Ministerial and Parliamentary Support Team - Ministerial and Parliamentary Support Team,ADECCO UK LTD,1018011,752.8
"Department for Business, Innovation and Skills","Department for Business, Innovation and Skills",01/02/2011,Rail Fares,Ministerial and Parliamentary Support Team - Ministerial and Parliamentary Support Team,WELSH ASSEMBLY GOVERNMENT,1017783,86.5
"Department for Business, Innovation and Skills","Department for Business, Innovation and Skills",01/02/2011,Hire of Agency Staff (Clerical/Secretariat/Other),Ministerial and Parliamentary Support Team - Ministerial and Parliamentary Support Team,ADECCO UK LTD,1018009,625.91
"Department for Business, Innovation and Skills","Department for Business, Innovation and Skills",01/02/2011,Hire of Agency Staff (Clerical/Secretariat/Other),Ministerial and Parliamentary Support Team - Ministerial and Parliamentary Support Team,ADECCO UK LTD,1018012,598.02
"Department for Business, Innovation and Skills","Department for Business, Innovation and Skills",01/02/2011,Hire of Agency Staff (Clerical/Secretariat/Other),Ministerial and Parliamentary Support Team - Ministerial and Parliamentary Support Team,ADECCO UK LTD,1018015,650.94
"Department for Business, Innovation and Skills","Department for Business, Innovation and Skills",01/02/2011,Hire of Agency Staff (Clerical/Secretariat/Other),Ministerial and Parliamentary Support Team - Ministerial and Parliamentary Support Team,ADECCO UK LTD,1018032,605.48
"Department for Business, Innovation and Skills","Department for Business, Innovation and Skills",01/02/2011,Hire of Reprographic Equipment,Office of Manpower Economics - Office of Manpower Economics,INFORMATION COMMISSIONERS OFFICE,1017929,35
"Department for Business, Innovation and Skills","Department for Business, Innovation and Skills",01/02/2011,Catering Services,Office of Manpower Economics - Office of Manpower Economics,SPOILT FOR CHOICE LTD,1017979,142.8
"Department for Business, Innovation and Skills","Department for Business, Innovation and Skills",01/02/2011,Stationery,Shareholder Executive - Shareholder Executive,LYRECO UK LTD,1017920,194.98
"Department for Business, Innovation and Skills","Department for Business, Innovation and Skills",01/02/2011,ICT Infrastructure Specific Service,Finance & Commercial Group - Information and Workplace Strategies,XMA LTD,1017476,4205.66
"Department for Business, Innovation and Skills","Department for Business, Innovation and Skills",01/02/2011,GTN Services,Finance & Commercial Group - Information and Workplace Strategies,CABLE & WIRELESS COMMUNICATIONS,1017684,1206
"Department for Business, Innovation and Skills","Department for Business, Innovation and Skills",01/02/2011,ICT Maintenance & Upkeep,Finance & Commercial Group - Information and Workplace Strategies,PARITY RESOURCES LTD,1018050,33844.71
"Department for Business, Innovation and Skills","Department for Business, Innovation and Skills",01/02/2011,Hire of Reprographic Equipment,Finance & Commercial Group - Information and Workplace Strategies,XEROX (UK) LTD,1018041,327.28
"Department for Business, Innovation and Skills","Department for Business, Innovation and Skills",01/02/2011,Courier Services,Finance & Commercial Group - Information and Workplace Strategies,TNT UK LTD,1018004,60.62
"Department for Business, Innovation and Skills","Department for Business, Innovation and Skills",01/02/2011,Security Policy Service,Finance & Commercial Group - Information and Workplace Strategies,FCO SERVICES,1016744,8525
"Department for Business, Innovation and Skills","Department for Business, Innovation and Skills",01/02/2011,InfoSource Desktop Information and Research Services,Finance & Commercial Group - Information and Workplace Strategies,ACKNOWLEDGE LTD,1017991,1800
"Department for Business, Innovation and Skills","Department for Business, Innovation and Skills",01/02/2011,Special Adjustments,"Legal, People & Communications Group - HRCM - Human Resources and Change Management Directorate",JANETTE NIMMO,1018038,94.8
"Department for Business, Innovation and Skills","Department for Business, Innovation and Skills",01/02/2011,Special Adjustments,"Legal, People & Communications Group - HRCM - Human Resources and Change Management Directorate",JANETTE NIMMO,1018039,8.2
"Department for Business, Innovation and Skills","Department for Business, Innovation and Skills",01/02/2011,Special Adjustments,"Legal, People & Communications Group - HRCM - Human Resources and Change Management Directorate",JANETTE NIMMO,1018039,246.6
"Department for Business, Innovation and Skills","Department for Business, Innovation and Skills",01/02/2011,Non-Grant in Aid Funding of Bodies (Departmental and Non-Departmental),Business & Skills Group - Further Education & Skills Investment,SKILLS FUNDING AGENCY,1017612,357579000
"Department for Business, Innovation and Skills","Department for Business, Innovation and Skills",01/02/2011,Grant in Aid - Current -Other,Knowledge and Innovation Group - Learners,STUDENT LOANS  CO LTD (INVEST TO SAVE),1017634,1122168.69
"Department for Business, Innovation and Skills","Department for Business, Innovation and Skills",01/02/2011,Grant in Aid - Current -Other,Knowledge and Innovation Group - Learners,STUDENT LOANS  CO LTD (INVEST TO SAVE),1017634,8311132.99
"Department for Business, Innovation and Skills","Department for Business, Innovation and Skills",01/02/2011,Grant in Aid - Current -Other,Knowledge and Innovation Group - Learners,STUDENT LOANS  CO LTD (INVEST TO SAVE),1017634,267732.6
"Department for Business, Innovation and Skills","Department for Business, Innovation and Skills",01/02/2011,Grant in Aid - Current -Other,Knowledge and Innovation Group - Learners,STUDENT LOANS  CO LTD (INVEST TO SAVE),1017634,45498.73
"Department for Business, Innovation and Skills","Department for Business, Innovation and Skills",01/02/2011,Grant in Aid - Current -Other,Knowledge and Innovation Group - Learners,STUDENT LOANS  CO LTD (INVEST TO SAVE),1017634,29205.97
"Department for Business, Innovation and Skills","Department for Business, Innovation and Skills",01/02/2011,Grant in Aid - Current -Other,Knowledge and Innovation Group - Learners,STUDENT LOANS  CO LTD (INVEST TO SAVE),1017634,109395.34
"Department for Business, Innovation and Skills","Department for Business, Innovation and Skills",01/02/2011,Grant in Aid - Current -Other,Knowledge and Innovation Group - Learners,STUDENT LOANS  CO LTD (INVEST TO SAVE),1017634,29361.97
"Department for Business, Innovation and Skills","Department for Business, Innovation and Skills",01/02/2011,Grant in Aid - Current -Other,Knowledge and Innovation Group - Learners,STUDENT LOANS  CO LTD (INVEST TO SAVE),1017634,49593.05
"Department for Business, Innovation and Skills","Department for Business, Innovation and Skills",01/02/2011,Grants - Statutory - Current - Other,Knowledge and Innovation Group - Research Base,THE SCIENCE COUNCIL,1017947,9500
"Department for Business, Innovation and Skills","Department for Business, Innovation and Skills",01/02/2011,Grants - Statutory - Current - Other,Knowledge and Innovation Group - Research Base,BRADFORD COLLEGE,1018007,207518.3
"Department for Business, Innovation and Skills","Department for Business, Innovation and Skills",01/02/2011,Grants - Statutory - Current - Other,Knowledge and Innovation Group - Research Base,"STEMNET (THE SCIENCE, TECHNOLOGY, ENGINEERING AND MATHEMATICS NETWORK)",1017953,71423.09
"Department for Business, Innovation and Skills","Department for Business, Innovation and Skills",01/02/2011,Grants - Statutory - Current - Other,Knowledge and Innovation Group - Research Base,"STEMNET (THE SCIENCE, TECHNOLOGY, ENGINEERING AND MATHEMATICS NETWORK)",1017953,52094.81
"Department for Business, Innovation and Skills","Department for Business, Innovation and Skills",01/02/2011,Catering Services (Programme),Knowledge and Innovation Group - Government Office For Science,KULIMA INTEGRATED DEVELOPMENT SOLUTIONS (PTY) LTD,1017102,23310.41
"Department for Business, Innovation and Skills","Department for Business, Innovation and Skills",01/02/2011,Research & Development Expenditure (Programme),Knowledge and Innovation Group - Government Office For Science,UNIVERSITY OF SUSSEX,1017932,9740
"Department for Business, Innovation and Skills","Department for Business, Innovation and Skills",01/02/2011,Research & Development Expenditure (Programme),Knowledge and Innovation Group - Government Office For Science,UNIVERSITY OF SUSSEX,1017932,10000
"Department for Business, Innovation and Skills","Department for Business, Innovation and Skills",01/02/2011,Air Fares  - Overseas (Programme),Knowledge and Innovation Group - Research Base,FOREIGN AND COMMONWEALTH OFFICE (FCO),1015294,204.43
"Department for Business, Innovation and Skills","Department for Business, Innovation and Skills",01/02/2011,Air Fares  - Overseas (Programme),Knowledge and Innovation Group - Research Base,FOREIGN AND COMMONWEALTH OFFICE (FCO),1015295,733.77
"Department for Business, Innovation and Skills","Department for Business, Innovation and Skills",01/02/2011,Air Fares  - Overseas (Programme),Knowledge and Innovation Group - Research Base,FOREIGN AND COMMONWEALTH OFFICE (FCO),1015296,159.18
"Department for Business, Innovation and Skills","Department for Business, Innovation and Skills",01/02/2011,Hire of Conference Facilities (Programme),Knowledge and Innovation Group - Research Base,FOREIGN AND COMMONWEALTH OFFICE (FCO),1015300,287.59
"Department for Business, Innovation and Skills","Department for Business, Innovation and Skills",01/02/2011,Air Fares  - Overseas (Programme),Knowledge and Innovation Group - Research Base,FOREIGN AND COMMONWEALTH OFFICE (FCO),1015301,227.97
"Department for Business, Innovation and Skills","Department for Business, Innovation and Skills",01/02/2011,Hotels- Overseas  (Programme),Knowledge and Innovation Group - Research Base,FOREIGN AND COMMONWEALTH OFFICE (FCO),1015302,676.3
"Department for Business, Innovation and Skills","Department for Business, Innovation and Skills",01/02/2011,Hotels- Overseas  (Programme),Knowledge and Innovation Group - Research Base,FOREIGN AND COMMONWEALTH OFFICE (FCO),1015303,259.57
"Department for Business, Innovation and Skills","Department for Business, Innovation and Skills",01/02/2011,Hotels- Overseas  (Programme),Knowledge and Innovation Group - Research Base,FOREIGN AND COMMONWEALTH OFFICE (FCO),1015304,895.71
"Department for Business, Innovation and Skills","Department for Business, Innovation and Skills",01/02/2011,Outsourced Programme Management Services,Knowledge and Innovation Group - Research Base,FOREIGN AND COMMONWEALTH OFFICE (FCO),1015305,13200
"Department for Business, Innovation and Skills","Department for Business, Innovation and Skills",01/02/2011,Rail Fares - Overseas (Programme),Knowledge and Innovation Group - Research Base,FOREIGN AND COMMONWEALTH OFFICE (FCO),1015307,52.2
"Department for Business, Innovation and Skills","Department for Business, Innovation and Skills",01/02/2011,Hotels- Overseas  (Programme),Knowledge and Innovation Group - Research Base,FOREIGN AND COMMONWEALTH OFFICE (FCO),1015307,2466
"Department for Business, Innovation and Skills","Department for Business, Innovation and Skills",01/02/2011,Others UK T&S (Programme),Knowledge and Innovation Group - Research Base,FOREIGN AND COMMONWEALTH OFFICE (FCO),1015310,55.88
"Department for Business, Innovation and Skills","Department for Business, Innovation and Skills",01/02/2011,Others UK T&S (Programme),Knowledge and Innovation Group - Research Base,FOREIGN AND COMMONWEALTH OFFICE (FCO),1015311,37.5
"Department for Business, Innovation and Skills","Department for Business, Innovation and Skills",01/02/2011,Courier Services (Programme),Knowledge and Innovation Group - Research Base,FOREIGN AND COMMONWEALTH OFFICE (FCO),1015312,148.45
"Department for Business, Innovation and Skills","Department for Business, Innovation and Skills",01/02/2011,Air Fares  - Overseas (Programme),Knowledge and Innovation Group - Research Base,FOREIGN AND COMMONWEALTH OFFICE (FCO),1015313,877
"Department for Business, Innovation and Skills","Department for Business, Innovation and Skills",01/02/2011,Entertaining Overseas (Programme),Knowledge and Innovation Group - Research Base,FOREIGN AND COMMONWEALTH OFFICE (FCO),1015314,92.47
"Department for Business, Innovation and Skills","Department for Business, Innovation and Skills",01/02/2011,Entertaining Overseas (Programme),Knowledge and Innovation Group - Research Base,FOREIGN AND COMMONWEALTH OFFICE (FCO),1015315,211.76
"Department for Business, Innovation and Skills","Department for Business, Innovation and Skills",01/02/2011,Entertaining Overseas (Programme),Knowledge and Innovation Group - Research Base,FOREIGN AND COMMONWEALTH OFFICE (FCO),1015316,37.98
"Department for Business, Innovation and Skills","Department for Business, Innovation and Skills",01/02/2011,Entertaining Overseas (Programme),Knowledge and Innovation Group - Research Base,FOREIGN AND COMMONWEALTH OFFICE (FCO),1015319,-560.56
"Department for Business, Innovation and Skills","Department for Business, Innovation and Skills",01/02/2011,Air Fares  - Overseas (Programme),Knowledge and Innovation Group - Research Base,FOREIGN AND COMMONWEALTH OFFICE (FCO),1015320,22.11
"Department for Business, Innovation and Skills","Department for Business, Innovation and Skills",01/02/2011,Entertaining Overseas (Programme),Knowledge and Innovation Group - Research Base,FOREIGN AND COMMONWEALTH OFFICE (FCO),1015320,560.56
"Department for Business, Innovation and Skills","Department for Business, Innovation and Skills",01/02/2011,Air Fares  - Overseas (Programme),Knowledge and Innovation Group - Research Base,FOREIGN AND COMMONWEALTH OFFICE (FCO),1015322,1690
"Department for Business, Innovation and Skills","Department for Business, Innovation and Skills",01/02/2011,Air Fares  - Overseas (Programme),Knowledge and Innovation Group - Research Base,FOREIGN AND COMMONWEALTH OFFICE (FCO),1015323,1690
"Department for Business, Innovation and Skills","Department for Business, Innovation and Skills",01/02/2011,Air Fares  - Overseas (Programme),Knowledge and Innovation Group - Research Base,FOREIGN AND COMMONWEALTH OFFICE (FCO),1015325,1750
"Department for Business, Innovation and Skills","Department for Business, Innovation and Skills",01/02/2011,Air Fares  - Overseas (Programme),Knowledge and Innovation Group - Research Base,NATURAL ENVIRONMENT RESEARCH COUNCIL,1017935,5639.55
"Department for Business, Innovation and Skills","Department for Business, Innovation and Skills",01/02/2011,Taxis- Overseas (Programme),Knowledge and Innovation Group - Research Base,NATURAL ENVIRONMENT RESEARCH COUNCIL,1017935,29.2
"Department for Business, Innovation and Skills","Department for Business, Innovation and Skills",01/02/2011,Hotels- Overseas  (Programme),Knowledge and Innovation Group - Research Base,NATURAL ENVIRONMENT RESEARCH COUNCIL,1017935,1164.21
"Department for Business, Innovation and Skills","Department for Business, Innovation and Skills",01/02/2011,Subsistence Payments- Overseas (Programme),Knowledge and Innovation Group - Research Base,NATURAL ENVIRONMENT RESEARCH COUNCIL,1017935,55.46
"Department for Business, Innovation and Skills","Department for Business, Innovation and Skills",01/02/2011,Taxis (Programme),Knowledge and Innovation Group - Research Base,ELEMENT ENERGY LTD,1017949,86.5
"Department for Business, Innovation and Skills","Department for Business, Innovation and Skills",01/02/2011,Subsistence Payments (Programme),Knowledge and Innovation Group - Research Base,ELEMENT ENERGY LTD,1017949,14.57
"Department for Business, Innovation and Skills","Department for Business, Innovation and Skills",01/02/2011,Others UK T&S (Programme),Knowledge and Innovation Group - Research Base,ELEMENT ENERGY LTD,1017949,48.6
"Department for Business, Innovation and Skills","Department for Business, Innovation and Skills",01/02/2011,Taxis- Overseas (Programme),Knowledge and Innovation Group - Research Base,ELEMENT ENERGY LTD,1017949,46.03
"Department for Business, Innovation and Skills","Department for Business, Innovation and Skills",01/02/2011,Subsistence Payments- Overseas (Programme),Knowledge and Innovation Group - Research Base,ELEMENT ENERGY LTD,1017949,7.71
"Department for Business, Innovation and Skills","Department for Business, Innovation and Skills",01/02/2011,Other IT Costs (Programme),Knowledge and Innovation Group - Research Base,ELEMENT ENERGY LTD,1017949,41.58
"Department for Business, Innovation and Skills","Department for Business, Innovation and Skills",01/02/2011,Air Fares  - Overseas (Programme),Knowledge and Innovation Group - Research Base,SCIENCE & TECHNOLOGY FACILITIES COUNCIL,1017977,604.3
"Department for Business, Innovation and Skills","Department for Business, Innovation and Skills",01/02/2011,Taxis (Programme),Knowledge and Innovation Group - Research Base,"Personal Expense, Name Witheld.",10275424,200
"Department for Business, Innovation and Skills","Department for Business, Innovation and Skills",01/02/2011,Taxis- Overseas (Programme),Knowledge and Innovation Group - Research Base,"Personal Expense, Name Witheld.",10275424,19.31
"Department for Business, Innovation and Skills","Department for Business, Innovation and Skills",01/02/2011,Air Fares  - Overseas (Programme),Knowledge and Innovation Group - Research Base,"Personal Expense, Name Witheld.",10275441,1767.6
"Department for Business, Innovation and Skills","Department for Business, Innovation and Skills",01/02/2011,Grant in Aid - Current -Other,Knowledge and Innovation Group - Innovation,THE TECHNOLOGY STRATEGY BOARD,1017961,25000000
"Department for Business, Innovation and Skills","Department for Business, Innovation and Skills",01/02/2011,Grants - Non Statutory - Current - Other,Market and Frameworks Group - Employment Relations,TUC,1017787,29367.38
"Department for Business, Innovation and Skills","Department for Business, Innovation and Skills",01/02/2011,Outsourced Programme Management Services,Business & Skills Group - Further Education & Skills Investment,SOVEREIGN TRUSTEES LIMITED (TRUSTEE COMPANY OF ADDLESHAW GODDARD),1017633,339.58
"Department for Business, Innovation and Skills","Department for Business, Innovation and Skills",01/02/2011,Outsourced Programme Management Services,Business & Skills Group - Further Education & Skills Investment,SPACE MAKER SELF STORAGE - BOURNEMOUTH,1017998,3500
"Department for Business, Innovation and Skills","Department for Business, Innovation and Skills",01/02/2011,Outsourced Programme Management Services,Business & Skills Group - Further Education & Skills Investment,SPACE MAKER SELF STORAGE - BOURNEMOUTH,1017998,616
"Department for Business, Innovation and Skills","Department for Business, Innovation and Skills",01/02/2011,Outsourced Programme Management Services,Business & Skills Group - Further Education & Skills Investment,SUPER STORAGE LTD,1018001,382.39
"Department for Business, Innovation and Skills","Department for Business, Innovation and Skills",02/02/2011,Grants - Non Statutory - Current - Other,Business & Skills Group - Advanced Manufacturing Industries,SOUTH EAST ENGLAND DEVELOPMENT AGENCY,1018052,14604
"Department for Business, Innovation and Skills","Department for Business, Innovation and Skills",02/02/2011,Payments to Barclays for Carlson Wagonlit Travel Contract,Finance & Commercial Group - Finance Group,CARLSON WAGONLIT TRAVEL UK LTD,1016678,-376.97
"Department for Business, Innovation and Skills","Department for Business, Innovation and Skills",02/02/2011,Payments to Expotel for Hotel Costs Contract,Finance & Commercial Group - Finance Group,EXPOTEL HOTEL RESERVATIONS LTD,1018042,14309.52
"Department for Business, Innovation and Skills","Department for Business, Innovation and Skills",02/02/2011,Payments to Barclays for Carlson Wagonlit Travel Contract,Finance & Commercial Group - Finance Group,CARLSON WAGONLIT TRAVEL UK LTD,1018055,1258.14
"Department for Business, Innovation and Skills","Department for Business, Innovation and Skills",02/02/2011,Other IT Costs (Programme),Business & Skills Group - Information Economy,CLAIRE HILL,1018149,270
"Department for Business, Innovation and Skills","Department for Business, Innovation and Skills",02/02/2011,Criminal Law and Prosecution Work,"Legal, People & Communications Group - Legal",ABV SOLICITORS,1018151,82.51
"Department for Business, Innovation and Skills","Department for Business, Innovation and Skills",02/02/2011,Criminal Law and Prosecution Work,"Legal, People & Communications Group - Legal",ABV SOLICITORS,1018151,13
"Department for Business, Innovation and Skills","Department for Business, Innovation and Skills",02/02/2011,Criminal Law and Prosecution Work,"Legal, People & Communications Group - Legal",ABV SOLICITORS,1018154,103.88
"Department for Business, Innovation and Skills","Department for Business, Innovation and Skills",02/02/2011,Criminal Law and Prosecution Work,"Legal, People & Communications Group - Legal",ABV SOLICITORS,1018154,16
"Department for Business, Innovation and Skills","Department for Business, Innovation and Skills",02/02/2011,Criminal Law and Prosecution Work,"Legal, People & Communications Group - Legal",DARBYS,1018159,1381.62
"Department for Business, Innovation and Skills","Department for Business, Innovation and Skills",02/02/2011,Criminal Law and Prosecution Work,"Legal, People & Communications Group - Legal",DARBYS,1018161,313.02
"Department for Business, Innovation and Skills","Department for Business, Innovation and Skills",02/02/2011,Criminal Law and Prosecution Work,"Legal, People & Communications Group - Legal",HARRIET BATHURST NORMAN,1018132,133.4
"Department for Business, Innovation and Skills","Department for Business, Innovation and Skills",02/02/2011,Grants - Non Statutory - Current - Other,Business & Skills Group - Advanced Manufacturing Industries,SOUTH EAST ENGLAND DEVELOPMENT AGENCY,1018052,31204
"Department for Business, Innovation and Skills","Department for Business, Innovation and Skills",02/02/2011,Other IT Costs (Programme),Business & Skills Group - Information Economy,JEAN GOUGH,1018046,304.1
"Department for Business, Innovation and Skills","Department for Business, Innovation and Skills",02/02/2011,Other Training Costs (Programme),Finance & Commercial Group - Finance Group,OFFICE OF GOVERNMENT COMMERCE (OGC),1018111,-7920
"Department for Business, Innovation and Skills","Department for Business, Innovation and Skills",02/02/2011,Other Training Costs (Programme),Finance & Commercial Group - Finance Group,OFFICE OF GOVERNMENT COMMERCE (OGC),1018112,7920
"Department for Business, Innovation and Skills","Department for Business, Innovation and Skills",02/02/2011,Hire of Agency Staff (Clerical/Secretariat/Other),Business & Skills Group - Advanced Manufacturing Industries,ADECCO UK LTD,1018022,343.52
"Department for Business, Innovation and Skills","Department for Business, Innovation and Skills",02/02/2011,Hire of Agency Staff (Clerical/Secretariat/Other),Business & Skills Group - Advanced Manufacturing Industries,ADECCO UK LTD,1018022,351.05
"Department for Business, Innovation and Skills","Department for Business, Innovation and Skills",02/02/2011,Hire of Agency Staff (Clerical/Secretariat/Other),Business & Skills Group - Advanced Manufacturing Industries,ADECCO UK LTD,1018027,281.08
"Department for Business, Innovation and Skills","Department for Business, Innovation and Skills",02/02/2011,Hire of Agency Staff (Clerical/Secretariat/Other),Business & Skills Group - Advanced Manufacturing Industries,ADECCO UK LTD,1018027,290.24
"Department for Business, Innovation and Skills","Department for Business, Innovation and Skills",02/02/2011,Publications,Business & Skills Group - Advanced Manufacturing Industries,JONES YARRELL LEADENHALL,1018084,34
"Department for Business, Innovation and Skills","Department for Business, Innovation and Skills",02/02/2011,Hire of Agency Staff (Clerical/Secretariat/Other),Business & Skills Group - Enterprise Directorate,ADECCO UK LTD,1018017,983.47
"Department for Business, Innovation and Skills","Department for Business, Innovation and Skills",02/02/2011,Publications,Business & Skills Group - Enterprise Directorate,DOD'S PARLIAMENTARY COMMUNICATIONS LTD (WESTMINSTER EXPLAINED),1018053,295
"Department for Business, Innovation and Skills","Department for Business, Innovation and Skills",02/02/2011,Hire of Agency Staff (Clerical/Secretariat/Other),Business & Skills Group - Enterprise Directorate,ADECCO UK LTD,1018088,647.37
"Department for Business, Innovation and Skills","Department for Business, Innovation and Skills",02/02/2011,Professional Subscriptions,Business & Skills Group - USG Admin,THE ROYAL SOCIETY OF CHEMISTRY,1017885,123
"Department for Business, Innovation and Skills","Department for Business, Innovation and Skills",02/02/2011,Publications,Chief Economic Advisor &BRE Group - Strategic Policy Analysis,JONES YARRELL LEADENHALL,1018057,97.77
"Department for Business, Innovation and Skills","Department for Business, Innovation and Skills",02/02/2011,Hire of Agency Staff (Clerical/Secretariat/Other),Chief Economic Advisor &BRE Group - Strategic Policy Analysis,ADECCO UK LTD,1018031,855
"Department for Business, Innovation and Skills","Department for Business, Innovation and Skills",02/02/2011,Hire of Agency Staff (Clerical/Secretariat/Other),Finance & Commercial Group - Finance Group,ADECCO UK LTD,1018023,625.24
"Department for Business, Innovation and Skills","Department for Business, Innovation and Skills",02/02/2011,Professional Subscriptions,Finance & Commercial Group - Finance Group,"Personal Expense, Name Witheld.",10275458,234
"Department for Business, Innovation and Skills","Department for Business, Innovation and Skills",02/02/2011,Long Term Detached Duty,Finance & Commercial Group - Information and Workplace Strategies,"Personal Expense, Name Witheld.",10275457,50
"Department for Business, Innovation and Skills","Department for Business, Innovation and Skills",02/02/2011,Rail Fares,Finance & Commercial Group - Information and Workplace Strategies,"Personal Expense, Name Witheld.",10275459,38
"Department for Business, Innovation and Skills","Department for Business, Innovation and Skills",02/02/2011,Mileage Allowances,Finance & Commercial Group - Information and Workplace Strategies,"Personal Expense, Name Witheld.",10275460,360
"Department for Business, Innovation and Skills","Department for Business, Innovation and Skills",02/02/2011,Subsistence Payments,Finance & Commercial Group - Information and Workplace Strategies,"Personal Expense, Name Witheld.",10275460,26.99
"Department for Business, Innovation and Skills","Department for Business, Innovation and Skills",02/02/2011,Other UK Travel & Subsistence,Finance & Commercial Group - Information and Workplace Strategies,"Personal Expense, Name Witheld.",10275460,17.7
"Department for Business, Innovation and Skills","Department for Business, Innovation and Skills",02/02/2011,Publications,Knowledge and Innovation Group - Government Office For Science,JONES YARRELL LEADENHALL,1018097,62.92
"Department for Business, Innovation and Skills","Department for Business, Innovation and Skills",02/02/2011,Publications,Knowledge and Innovation Group - Higher Education Admin,DOD'S PARLIAMENTARY COMMUNICATIONS LTD (WESTMINSTER EXPLAINED),1018127,295
"Department for Business, Innovation and Skills","Department for Business, Innovation and Skills",02/02/2011,Taxis,Knowledge and Innovation Group - Higher Education Admin,GOVERNMENT CAR AND DESPATCH AGENCY,1018241,26.6
"Department for Business, Innovation and Skills","Department for Business, Innovation and Skills",02/02/2011,Rail Fares,Knowledge and Innovation Group - Innovation,"Personal Expense, Name Witheld.",10275461,18.7
"Department for Business, Innovation and Skills","Department for Business, Innovation and Skills",02/02/2011,Taxis,Knowledge and Innovation Group - Innovation,"Personal Expense, Name Witheld.",10275461,13.2
"Department for Business, Innovation and Skills","Department for Business, Innovation and Skills",02/02/2011,Publications,Knowledge and Innovation Group - Innovation,JONES YARRELL LEADENHALL,1018058,17.85
"Department for Business, Innovation and Skills","Department for Business, Innovation and Skills",02/02/2011,Rail Fares,Knowledge and Innovation Group - Innovation,"Personal Expense, Name Witheld.",10275465,32
"Department for Business, Innovation and Skills","Department for Business, Innovation and Skills",02/02/2011,Rail Fares Overseas,Knowledge and Innovation Group - Innovation,"Personal Expense, Name Witheld.",10275465,1.29
"Department for Business, Innovation and Skills","Department for Business, Innovation and Skills",02/02/2011,Air Fares Overseas,Knowledge and Innovation Group - Innovation,"Personal Expense, Name Witheld.",10275465,165.61
"Department for Business, Innovation and Skills","Department for Business, Innovation and Skills",02/02/2011,Taxis Overseas,Knowledge and Innovation Group - Innovation,"Personal Expense, Name Witheld.",10275465,18.65
"Department for Business, Innovation and Skills","Department for Business, Innovation and Skills",02/02/2011,Hotels Overseas,Knowledge and Innovation Group - Innovation,"Personal Expense, Name Witheld.",10275465,124.68
"Department for Business, Innovation and Skills","Department for Business, Innovation and Skills",02/02/2011,Subsistence Payments Overseas,Knowledge and Innovation Group - Innovation,"Personal Expense, Name Witheld.",10275465,9.15
"Department for Business, Innovation and Skills","Department for Business, Innovation and Skills",02/02/2011,Other Overseas Travel & Subsistence,Knowledge and Innovation Group - Innovation,"Personal Expense, Name Witheld.",10275465,30
"Department for Business, Innovation and Skills","Department for Business, Innovation and Skills",02/02/2011,Subsistence Payments Overseas,Knowledge and Innovation Group - Research Base,"Personal Expense, Name Witheld.",10275464,33.53
"Department for Business, Innovation and Skills","Department for Business, Innovation and Skills",02/02/2011,Rail Fares Overseas,Knowledge and Innovation Group - Research Base,"Personal Expense, Name Witheld.",10275463,8.3
"Department for Business, Innovation and Skills","Department for Business, Innovation and Skills",02/02/2011,Air Fares Overseas,Knowledge and Innovation Group - Research Base,"Personal Expense, Name Witheld.",10275463,199.6
"Department for Business, Innovation and Skills","Department for Business, Innovation and Skills",02/02/2011,Hotels Overseas,Knowledge and Innovation Group - Research Base,"Personal Expense, Name Witheld.",10275463,79.79
"Department for Business, Innovation and Skills","Department for Business, Innovation and Skills",02/02/2011,Hire of Agency Staff (Clerical/Secretariat/Other),"Legal, People & Communications Group - Communications Directorate",ADECCO UK LTD,1018091,308.57
"Department for Business, Innovation and Skills","Department for Business, Innovation and Skills",02/02/2011,Hire of Agency Staff (Clerical/Secretariat/Other),"Legal, People & Communications Group - Communications Directorate",ADECCO UK LTD,1018091,312.47
"Department for Business, Innovation and Skills","Department for Business, Innovation and Skills",02/02/2011,Hire of Agency Staff (Clerical/Secretariat/Other),"Legal, People & Communications Group - Communications Directorate",ADECCO UK LTD,1018101,676.61
"Department for Business, Innovation and Skills","Department for Business, Innovation and Skills",02/02/2011,Hire of Agency Staff (Clerical/Secretariat/Other),"Legal, People & Communications Group - Communications Directorate",ADECCO UK LTD,1018105,596.52
"Department for Business, Innovation and Skills","Department for Business, Innovation and Skills",02/02/2011,Hire of Agency Staff (Clerical/Secretariat/Other),"Legal, People & Communications Group - Communications Directorate",ADECCO UK LTD,1018107,676.61
"Department for Business, Innovation and Skills","Department for Business, Innovation and Skills",02/02/2011,Hire of Agency Staff (Clerical/Secretariat/Other),"Legal, People & Communications Group - Legal",ADECCO UK LTD,1018078,641
"Department for Business, Innovation and Skills","Department for Business, Innovation and Skills",02/02/2011,Hire of Agency Staff (Clerical/Secretariat/Other),"Legal, People & Communications Group - Legal",ADECCO UK LTD,1018099,638.45
"Department for Business, Innovation and Skills","Department for Business, Innovation and Skills",02/02/2011,Postage,"Legal, People & Communications Group - Legal",TNT UK LTD,1017999,8.4
"Department for Business, Innovation and Skills","Department for Business, Innovation and Skills",02/02/2011,Maintenance of Office Machinery,"Legal, People & Communications Group - Legal",NEOPOST LTD,1018005,90
"Department for Business, Innovation and Skills","Department for Business, Innovation and Skills",02/02/2011,Postage,"Legal, People & Communications Group - Legal",NEOPOST LTD,1018065,357.76
"Department for Business, Innovation and Skills","Department for Business, Innovation and Skills",02/02/2011,Publications,Market and Frameworks Group - Business Environment and Growth Directorate,JONES YARRELL LEADENHALL,1018081,34
"Department for Business, Innovation and Skills","Department for Business, Innovation and Skills",02/02/2011,Mobile Phones,Market and Frameworks Group - Consumer and Competition Policy,VODAFONE LTD,1017198,25.19
"Department for Business, Innovation and Skills","Department for Business, Innovation and Skills",02/02/2011,Mobile Phones,Market and Frameworks Group - Consumer and Competition Policy,VODAFONE LTD,1017198,4.34
"Department for Business, Innovation and Skills","Department for Business, Innovation and Skills",02/02/2011,Mobile Phones,Market and Frameworks Group - Consumer and Competition Policy,VODAFONE LTD,1017198,0.5
"Department for Business, Innovation and Skills","Department for Business, Innovation and Skills",02/02/2011,Publications,Market and Frameworks Group - Consumer and Competition Policy,THE STATIONERY OFFICE LTD,1017140,11.48
"Department for Business, Innovation and Skills","Department for Business, Innovation and Skills",02/02/2011,Translation Services,Market and Frameworks Group - Consumer and Competition Policy,FCO SERVICES,1016899,190.75
"Department for Business, Innovation and Skills","Department for Business, Innovation and Skills",02/02/2011,Publications,Market and Frameworks Group - Employment Relations,JONES YARRELL LEADENHALL,1018054,1.19
"Department for Business, Innovation and Skills","Department for Business, Innovation and Skills",02/02/2011,Publications,Market and Frameworks Group - Employment Relations,JONES YARRELL LEADENHALL,1018054,12.75
"Department for Business, Innovation and Skills","Department for Business, Innovation and Skills",02/02/2011,Mobile Call Charges,Market and Frameworks Group - Europe and World Trade Directorates,VODAFONE LTD,1017453,138.76
"Department for Business, Innovation and Skills","Department for Business, Innovation and Skills",02/02/2011,Mobile Call Charges,Market and Frameworks Group - Europe and World Trade Directorates,VODAFONE LTD,1017453,34.86
"Department for Business, Innovation and Skills","Department for Business, Innovation and Skills",02/02/2011,Mobile Call Charges,Market and Frameworks Group - Europe and World Trade Directorates,VODAFONE LTD,1017453,16.81
"Department for Business, Innovation and Skills","Department for Business, Innovation and Skills",02/02/2011,Hire of Agency Staff (Clerical/Secretariat/Other),Ministerial and Parliamentary Support Team - Ministerial and Parliamentary Support Team,ADECCO UK LTD,1018093,877.8
"Department for Business, Innovation and Skills","Department for Business, Innovation and Skills",02/02/2011,Hire of Agency Staff (Clerical/Secretariat/Other),Ministerial and Parliamentary Support Team - Ministerial and Parliamentary Support Team,ADECCO UK LTD,1018125,939.25
"Department for Business, Innovation and Skills","Department for Business, Innovation and Skills",02/02/2011,Hire of Agency Staff (Clerical/Secretariat/Other),Ministerial and Parliamentary Support Team - Ministerial and Parliamentary Support Team,ADECCO UK LTD,1018082,585.56
"Department for Business, Innovation and Skills","Department for Business, Innovation and Skills",02/02/2011,Hire of Agency Staff (Clerical/Secretariat/Other),Ministerial and Parliamentary Support Team - Ministerial and Parliamentary Support Team,ADECCO UK LTD,1018086,596.52
"Department for Business, Innovation and Skills","Department for Business, Innovation and Skills",02/02/2011,Hire of Agency Staff (Clerical/Secretariat/Other),Ministerial and Parliamentary Support Team - Ministerial and Parliamentary Support Team,ADECCO UK LTD,1018089,596.52
"Department for Business, Innovation and Skills","Department for Business, Innovation and Skills",02/02/2011,Hire of Agency Staff (Clerical/Secretariat/Other),Ministerial and Parliamentary Support Team - Ministerial and Parliamentary Support Team,ADECCO UK LTD,1018094,345.53
"Department for Business, Innovation and Skills","Department for Business, Innovation and Skills",02/02/2011,Hire of Agency Staff (Clerical/Secretariat/Other),Ministerial and Parliamentary Support Team - Ministerial and Parliamentary Support Team,ADECCO UK LTD,1018100,525.94
"Department for Business, Innovation and Skills","Department for Business, Innovation and Skills",02/02/2011,Publications,Shareholder Executive - Shareholder Executive,JONES YARRELL LEADENHALL,1018060,115.24
"Department for Business, Innovation and Skills","Department for Business, Innovation and Skills",02/02/2011,Technical Advice / Services & Support,Shareholder Executive - Shareholder Executive,RICHARD RAMSAY LTD,1018072,9004.5
"Department for Business, Innovation and Skills","Department for Business, Innovation and Skills",02/02/2011,Technical Advice / Services & Support,Shareholder Executive - Shareholder Executive,RICHARD RAMSAY LTD,1018074,2663.3
"Department for Business, Innovation and Skills","Department for Business, Innovation and Skills",02/02/2011,Technical Advice / Services & Support,Shareholder Executive - Shareholder Executive,RICHARD RAMSAY LTD,1018074,7405.2
"Department for Business, Innovation and Skills","Department for Business, Innovation and Skills",02/02/2011,Technical Advice / Services & Support,Shareholder Executive - Shareholder Executive,RICHARD RAMSAY LTD,1018075,6192.6
"Department for Business, Innovation and Skills","Department for Business, Innovation and Skills",02/02/2011,Hire of Agency Staff (Clerical/Secretariat/Other),Shareholder Executive - Shareholder Executive,ADECCO UK LTD,1018109,689.8
"Department for Business, Innovation and Skills","Department for Business, Innovation and Skills",02/02/2011,ICT Infrastructure Specific Service,Finance & Commercial Group - Information and Workplace Strategies,XMA LTD,1017470,1314.96
"Department for Business, Innovation and Skills","Department for Business, Innovation and Skills",02/02/2011,ICT Infrastructure Specific Service,Finance & Commercial Group - Information and Workplace Strategies,XMA LTD,1017471,2044.54
"Department for Business, Innovation and Skills","Department for Business, Innovation and Skills",02/02/2011,ICT Maintenance & Upkeep (PFI),Finance & Commercial Group - Information and Workplace Strategies,FUJITSU SERVICES LTD,1017831,53551.34
"Department for Business, Innovation and Skills","Department for Business, Innovation and Skills",02/02/2011,ICT Maintenance & Upkeep (PFI),Finance & Commercial Group - Information and Workplace Strategies,FUJITSU SERVICES LTD,1017831,6237
"Department for Business, Innovation and Skills","Department for Business, Innovation and Skills",02/02/2011,Flexible Computing Service (PFI),Finance & Commercial Group - Information and Workplace Strategies,FUJITSU SERVICES LTD,1017839,23172
"Department for Business, Innovation and Skills","Department for Business, Innovation and Skills",02/02/2011,ICT Infrastructure Specific Service,Finance & Commercial Group - Information and Workplace Strategies,XMA LTD,1017946,1795.01
"Department for Business, Innovation and Skills","Department for Business, Innovation and Skills",02/02/2011,Standard Desktop Plus Services,Finance & Commercial Group - Information and Workplace Strategies,COMPUTACENTER plc,1018000,13826.09
"Department for Business, Innovation and Skills","Department for Business, Innovation and Skills",02/02/2011,Standard Desktop Plus Service (PFI),Finance & Commercial Group - Information and Workplace Strategies,FUJITSU SERVICES LTD,1018130,38483.63
"Department for Business, Innovation and Skills","Department for Business, Innovation and Skills",02/02/2011,Standard Desktop Plus Service (PFI),Finance & Commercial Group - Information and Workplace Strategies,FUJITSU SERVICES LTD,1018164,1675.33
"Department for Business, Innovation and Skills","Department for Business, Innovation and Skills",02/02/2011,Standard Desktop Plus Service (PFI),Finance & Commercial Group - Information and Workplace Strategies,FUJITSU SERVICES LTD,1018166,3880.08
"Department for Business, Innovation and Skills","Department for Business, Innovation and Skills",02/02/2011,ICT Infrastructure Specific Service (PFI),Finance & Commercial Group - Information and Workplace Strategies,FUJITSU SERVICES LTD,1018169,615.92
"Department for Business, Innovation and Skills","Department for Business, Innovation and Skills",02/02/2011,Standard Desktop Plus Service (PFI),Finance & Commercial Group - Information and Workplace Strategies,FUJITSU SERVICES LTD,1018171,46.04
"Department for Business, Innovation and Skills","Department for Business, Innovation and Skills",02/02/2011,Standard Desktop Plus Service (PFI),Finance & Commercial Group - Information and Workplace Strategies,FUJITSU SERVICES LTD,1018174,65
"Department for Business, Innovation and Skills","Department for Business, Innovation and Skills",02/02/2011,Standard Desktop Plus Service (PFI),Finance & Commercial Group - Information and Workplace Strategies,FUJITSU SERVICES LTD,1018177,5703.07
"Department for Business, Innovation and Skills","Department for Business, Innovation and Skills",02/02/2011,Standard Desktop Plus Service (PFI),Finance & Commercial Group - Information and Workplace Strategies,FUJITSU SERVICES LTD,1018178,653.42
"Department for Business, Innovation and Skills","Department for Business, Innovation and Skills",02/02/2011,ICT Maintenance & Upkeep,Finance & Commercial Group - Information and Workplace Strategies,EDUSERV TECHNOLOGIES LTD,1017740,3585
"Department for Business, Innovation and Skills","Department for Business, Innovation and Skills",02/02/2011,Service Charges,Finance & Commercial Group - Information and Workplace Strategies,CUSHMAN & WAKEFIELD LLP,1014568,-11599.43
"Department for Business, Innovation and Skills","Department for Business, Innovation and Skills",02/02/2011,Service Charges,Finance & Commercial Group - Information and Workplace Strategies,CUSHMAN & WAKEFIELD LLP,1016712,573.34
"Department for Business, Innovation and Skills","Department for Business, Innovation and Skills",02/02/2011,Service Charges,Finance & Commercial Group - Information and Workplace Strategies,HIGHWAYS AGENCY,1018102,91.01
"Department for Business, Innovation and Skills","Department for Business, Innovation and Skills",02/02/2011,Occupational Health Service,"Legal, People & Communications Group - HRCM - Human Resources and Change Management Directorate",MEDIGOLD HEALTH CONSULTANCY LTD,1017925,1350
"Department for Business, Innovation and Skills","Department for Business, Innovation and Skills",02/02/2011,Approved Pensions Awarding Centres (DWP),"Legal, People & Communications Group - HRCM - Human Resources and Change Management Directorate",DEPARTMENT FOR WORK AND PENSIONS (DWP),1018156,28052.56
"Department for Business, Innovation and Skills","Department for Business, Innovation and Skills",02/02/2011,Departmental Sponsored Training (Programme),Business & Skills Group - Enterprise Directorate,UFI LTD,1018133,18463
"Department for Business, Innovation and Skills","Department for Business, Innovation and Skills",02/02/2011,Outsourced Programme Management Services,Knowledge and Innovation Group - Research Base,AEA TECHNOLOGY plc,1016896,103200
"Department for Business, Innovation and Skills","Department for Business, Innovation and Skills",02/02/2011,Catering Services (Programme),Knowledge and Innovation Group - Government Office For Science,BUTEK A.S.,1017229,16104.17
"Department for Business, Innovation and Skills","Department for Business, Innovation and Skills",02/02/2011,Cash Expenditure during the Year - Other Programme Provisions,Market and Frameworks Group - Employment Relations,Payment under the Icelandic Trawlerman Compensation Scheme 2009- Name Withheld ,10275475,177.68
"Department for Business, Innovation and Skills","Department for Business, Innovation and Skills",02/02/2011,Cash Expenditure during the Year - Other Programme Provisions,Market and Frameworks Group - Employment Relations,Payment under the Icelandic Trawlerman Compensation Scheme 2009- Name Withheld ,10275476,25.38
"Department for Business, Innovation and Skills","Department for Business, Innovation and Skills",02/02/2011,Cash Expenditure during the Year - Other Programme Provisions,Market and Frameworks Group - Employment Relations,Payment under the Icelandic Trawlerman Compensation Scheme 2009- Name Withheld ,10275477,25.38
"Department for Business, Innovation and Skills","Department for Business, Innovation and Skills",02/02/2011,Cash Expenditure during the Year - Other Programme Provisions,Market and Frameworks Group - Employment Relations,Payment under the Icelandic Trawlerman Compensation Scheme 2009- Name Withheld ,10275478,101.53
"Department for Business, Innovation and Skills","Department for Business, Innovation and Skills",02/02/2011,Cash Expenditure during the Year - Other Programme Provisions,Market and Frameworks Group - Employment Relations,Payment under the Icelandic Trawlerman Compensation Scheme 2009- Name Withheld ,10275479,583.83
"Department for Business, Innovation and Skills","Department for Business, Innovation and Skills",02/02/2011,Cash Expenditure during the Year - Other Programme Provisions,Market and Frameworks Group - Employment Relations,Payment under the Icelandic Trawlerman Compensation Scheme 2009- Name Withheld ,10275480,431.49
"Department for Business, Innovation and Skills","Department for Business, Innovation and Skills",02/02/2011,Cash Expenditure during the Year - Other Programme Provisions,Market and Frameworks Group - Employment Relations,Payment under the Icelandic Trawlerman Compensation Scheme 2009- Name Withheld ,10275481,964.57
"Department for Business, Innovation and Skills","Department for Business, Innovation and Skills",02/02/2011,Cash Expenditure during the Year - Other Programme Provisions,Market and Frameworks Group - Employment Relations,Payment under the Icelandic Trawlerman Compensation Scheme 2009- Name Withheld ,10275482,634.59
"Department for Business, Innovation and Skills","Department for Business, Innovation and Skills",02/02/2011,Cash Expenditure during the Year - Other Programme Provisions,Market and Frameworks Group - Employment Relations,Payment under the Icelandic Trawlerman Compensation Scheme 2009- Name Withheld ,10275483,76.15
"Department for Business, Innovation and Skills","Department for Business, Innovation and Skills",02/02/2011,Cash Expenditure during the Year - Other Programme Provisions,Market and Frameworks Group - Employment Relations,Payment under the Icelandic Trawlerman Compensation Scheme 2009- Name Withheld ,10275484,811.75
"Department for Business, Innovation and Skills","Department for Business, Innovation and Skills",02/02/2011,Cash Expenditure during the Year - Other Programme Provisions,Market and Frameworks Group - Employment Relations,Payment under the Icelandic Trawlerman Compensation Scheme 2009- Name Withheld ,10275485,126.91
"Department for Business, Innovation and Skills","Department for Business, Innovation and Skills",02/02/2011,Cash Expenditure during the Year - Other Programme Provisions,Market and Frameworks Group - Employment Relations,Payment under the Icelandic Trawlerman Compensation Scheme 2009- Name Withheld ,10275486,482.29
"Department for Business, Innovation and Skills","Department for Business, Innovation and Skills",02/02/2011,Cash Expenditure during the Year - Other Programme Provisions,Market and Frameworks Group - Employment Relations,Payment under the Icelandic Trawlerman Compensation Scheme 2009- Name Withheld ,10275488,913.81
"Department for Business, Innovation and Skills","Department for Business, Innovation and Skills",02/02/2011,Cash Expenditure during the Year - Other Programme Provisions,Market and Frameworks Group - Employment Relations,Payment under the Icelandic Trawlerman Compensation Scheme 2009- Name Withheld ,10275491,25.38
"Department for Business, Innovation and Skills","Department for Business, Innovation and Skills",02/02/2011,Cash Expenditure during the Year - Other Programme Provisions,Market and Frameworks Group - Employment Relations,Payment under the Icelandic Trawlerman Compensation Scheme 2009- Name Withheld ,10275492,253.84
"Department for Business, Innovation and Skills","Department for Business, Innovation and Skills",02/02/2011,Cash Expenditure during the Year - Other Programme Provisions,Market and Frameworks Group - Employment Relations,Payment under the Icelandic Trawlerman Compensation Scheme 2009- Name Withheld ,10275493,101.54
"Department for Business, Innovation and Skills","Department for Business, Innovation and Skills",02/02/2011,Cash Expenditure during the Year - Other Programme Provisions,Market and Frameworks Group - Employment Relations,Payment under the Icelandic Trawlerman Compensation Scheme 2009- Name Withheld ,10275494,127.12
"Department for Business, Innovation and Skills","Department for Business, Innovation and Skills",02/02/2011,Cash Expenditure during the Year - Other Programme Provisions,Market and Frameworks Group - Employment Relations,Payment under the Icelandic Trawlerman Compensation Scheme 2009- Name Withheld ,10275495,1040.72
"Department for Business, Innovation and Skills","Department for Business, Innovation and Skills",02/02/2011,Cash Expenditure during the Year - Other Programme Provisions,Market and Frameworks Group - Employment Relations,Payment under the Icelandic Trawlerman Compensation Scheme 2009- Name Withheld ,10275496,507.66
"Department for Business, Innovation and Skills","Department for Business, Innovation and Skills",02/02/2011,Cash Expenditure during the Year - Other Programme Provisions,Market and Frameworks Group - Employment Relations,Payment under the Icelandic Trawlerman Compensation Scheme 2009- Name Withheld ,10275497,152.3
"Department for Business, Innovation and Skills","Department for Business, Innovation and Skills",02/02/2011,Cash Expenditure during the Year - Other Programme Provisions,Market and Frameworks Group - Employment Relations,Payment under the Icelandic Trawlerman Compensation Scheme 2009- Name Withheld ,10275498,25.38
"Department for Business, Innovation and Skills","Department for Business, Innovation and Skills",02/02/2011,Cash Expenditure during the Year - Other Programme Provisions,Market and Frameworks Group - Employment Relations,Payment under the Icelandic Trawlerman Compensation Scheme 2009- Name Withheld ,10275499,634.59
"Department for Business, Innovation and Skills","Department for Business, Innovation and Skills",02/02/2011,Cash Expenditure during the Year - Other Programme Provisions,Market and Frameworks Group - Employment Relations,Payment under the Icelandic Trawlerman Compensation Scheme 2009- Name Withheld ,10275500,76.15
"Department for Business, Innovation and Skills","Department for Business, Innovation and Skills",02/02/2011,Cash Expenditure during the Year - Other Programme Provisions,Market and Frameworks Group - Employment Relations,Payment under the Icelandic Trawlerman Compensation Scheme 2009- Name Withheld ,10275501,1040.73
"Department for Business, Innovation and Skills","Department for Business, Innovation and Skills",02/02/2011,Cash Expenditure during the Year - Other Programme Provisions,Market and Frameworks Group - Employment Relations,Payment under the Icelandic Trawlerman Compensation Scheme 2009- Name Withheld ,10275502,76.15
"Department for Business, Innovation and Skills","Department for Business, Innovation and Skills",02/02/2011,Cash Expenditure during the Year - Other Programme Provisions,Market and Frameworks Group - Employment Relations,Payment under the Icelandic Trawlerman Compensation Scheme 2009- Name Withheld ,10275503,75.78
"Department for Business, Innovation and Skills","Department for Business, Innovation and Skills",02/02/2011,Cash Expenditure during the Year - Other Programme Provisions,Market and Frameworks Group - Employment Relations,Payment under the Icelandic Trawlerman Compensation Scheme 2009- Name Withheld ,10275504,177.68
"Department for Business, Innovation and Skills","Department for Business, Innovation and Skills",02/02/2011,Cash Expenditure during the Year - Other Programme Provisions,Market and Frameworks Group - Employment Relations,Payment under the Icelandic Trawlerman Compensation Scheme 2009- Name Withheld ,10275505,50.76
"Department for Business, Innovation and Skills","Department for Business, Innovation and Skills",02/02/2011,Cash Expenditure during the Year - Other Programme Provisions,Market and Frameworks Group - Employment Relations,Payment under the Icelandic Trawlerman Compensation Scheme 2009- Name Withheld ,10275506,812.28
"Department for Business, Innovation and Skills","Department for Business, Innovation and Skills",02/02/2011,Cash Expenditure during the Year - Other Programme Provisions,Market and Frameworks Group - Employment Relations,Payment under the Icelandic Trawlerman Compensation Scheme 2009- Name Withheld ,10275507,76.14
"Department for Business, Innovation and Skills","Department for Business, Innovation and Skills",02/02/2011,Cash Expenditure during the Year - Other Programme Provisions,Market and Frameworks Group - Employment Relations,Payment under the Icelandic Trawlerman Compensation Scheme 2009- Name Withheld ,10275508,380.75
"Department for Business, Innovation and Skills","Department for Business, Innovation and Skills",02/02/2011,Cash Expenditure during the Year - Other Programme Provisions,Market and Frameworks Group - Employment Relations,Payment under the Icelandic Trawlerman Compensation Scheme 2009- Name Withheld ,10275511,761.51
"Department for Business, Innovation and Skills","Department for Business, Innovation and Skills",02/02/2011,Grants - Non Statutory - Current - Other,Market and Frameworks Group - Employment Relations,UNITE THE UNION - AMICUS SECTION,1018056,18734.47
"Department for Business, Innovation and Skills","Department for Business, Innovation and Skills",02/02/2011,Grants - Non Statutory - Current - Other,Market and Frameworks Group - Employment Relations,UNITE THE UNION - AMICUS SECTION,1018056,25000
"Department for Business, Innovation and Skills","Department for Business, Innovation and Skills",02/02/2011,Grants - Non Statutory - Current - Other,Market and Frameworks Group - Employment Relations,BROADCASTING ENTERTAINMENT CINEMATOGRAPH AND THEATRE UNION (BECTU),1017988,5595.45
"Department for Business, Innovation and Skills","Department for Business, Innovation and Skills",02/02/2011,Outsourced Programme Management Services,Business & Skills Group - Further Education & Skills Investment,SUPER STORAGE LTD,1017693,390.53
"Department for Business, Innovation and Skills","Department for Business, Innovation and Skills",02/02/2011,ER Paternity & Adoption Pay : Reimbursement to Inland Revenue,Market and Frameworks Group - Employment Relations,HM REVENUE & CUSTOMS,1017943,530555.55
"Department for Business, Innovation and Skills","Department for Business, Innovation and Skills",02/02/2011,Consultancy Advice Provided From Third Parties,Market and Frameworks Group - Employment Relations,HMRC,1018150,22001.12
"Department for Business, Innovation and Skills","Department for Business, Innovation and Skills",03/02/2011,Non-Grant in Aid Funding of Bodies (Departmental and Non-Departmental),Market and Frameworks Group - Consumer and Competition Policy,SCOTTISH ASSOCIATION CITIZENS ADVICE BUREAUX,1018289,610162
"Department for Business, Innovation and Skills","Department for Business, Innovation and Skills",03/02/2011,Non-Grant in Aid Funding of Bodies (Departmental and Non-Departmental),Market and Frameworks Group - Consumer and Competition Policy,SCOTTISH ASSOCIATION CITIZENS ADVICE BUREAUX,1018289,42000
"Department for Business, Innovation and Skills","Department for Business, Innovation and Skills",03/02/2011,Grants - Non Statutory - Current - Other,Business & Skills Group - Further Education,INSTITUTE FOR LEARNING (PCET),1018283,19550
"Department for Business, Innovation and Skills","Department for Business, Innovation and Skills",03/02/2011,Grants - Non Statutory - Current - Other,Business & Skills Group - Further Education,LIFELONG LEARNING UK (LLUK),1018350,289731
"Department for Business, Innovation and Skills","Department for Business, Innovation and Skills",03/02/2011,Grants - Non Statutory - Current - Other,Knowledge and Innovation Group - Learners,FAMILY ACTION,1018293,6000
"Department for Business, Innovation and Skills","Department for Business, Innovation and Skills",03/02/2011,Non-Grant in Aid Funding of Bodies (Departmental and Non-Departmental),Market and Frameworks Group - Insolvency Service,THE INSOLVENCY SERVICE,1018352,500000
"Department for Business, Innovation and Skills","Department for Business, Innovation and Skills",03/02/2011,Criminal Law and Prosecution Work,"Legal, People & Communications Group - Legal",FORD SIMEY,1018191,293.19
"Department for Business, Innovation and Skills","Department for Business, Innovation and Skills",03/02/2011,Criminal Law and Prosecution Work,"Legal, People & Communications Group - Legal",MORECROFTS LLP,1018269,663.5
"Department for Business, Innovation and Skills","Department for Business, Innovation and Skills",03/02/2011,Criminal Law and Prosecution Work,"Legal, People & Communications Group - Legal",MORECROFTS LLP,1018269,200
"Department for Business, Innovation and Skills","Department for Business, Innovation and Skills",03/02/2011,Criminal Law and Prosecution Work,"Legal, People & Communications Group - Legal",MORECROFTS LLP,1018271,676.68
"Department for Business, Innovation and Skills","Department for Business, Innovation and Skills",03/02/2011,Criminal Law and Prosecution Work,"Legal, People & Communications Group - Legal",JOHN DYER,1018137,203.76
"Department for Business, Innovation and Skills","Department for Business, Innovation and Skills",03/02/2011,Criminal Law and Prosecution Work,"Legal, People & Communications Group - Legal",ALICE NEWTON,1018176,100
"Department for Business, Innovation and Skills","Department for Business, Innovation and Skills",03/02/2011,Criminal Law and Prosecution Work,"Legal, People & Communications Group - Legal",FIONA JACKSON,1018209,336
"Department for Business, Innovation and Skills","Department for Business, Innovation and Skills",03/02/2011,Criminal Law and Prosecution Work,"Legal, People & Communications Group - Legal",FIONA SHIPLEY TRANSCRIPTION LTD,1018129,74.16
"Department for Business, Innovation and Skills","Department for Business, Innovation and Skills",03/02/2011,Grants - Statutory - Current - Other,Business & Skills Group - Enterprise Directorate,COMMUNITY DEVELOPMENT FINANCE ASSOCIATION (CDFA),1018339,59443
"Department for Business, Innovation and Skills","Department for Business, Innovation and Skills",03/02/2011,Sponsorship Support,Business & Skills Group - Enterprise Directorate,MONEY ADVICE TRUST,1018219,132375
"Department for Business, Innovation and Skills","Department for Business, Innovation and Skills",03/02/2011,IT Services (Programme),"Legal, People & Communications Group - Communications Directorate",HELPFUL TECHNOLOGY LTD,1018206,350
"Department for Business, Innovation and Skills","Department for Business, Innovation and Skills",03/02/2011,Rail Fares,Business & Skills Group - Advanced Manufacturing Industries,"Personal Expense, Name Witheld.",10275489,13.3
"Department for Business, Innovation and Skills","Department for Business, Innovation and Skills",03/02/2011,Rail Fares Overseas,Business & Skills Group - Advanced Manufacturing Industries,"Personal Expense, Name Witheld.",10275489,44.8
"Department for Business, Innovation and Skills","Department for Business, Innovation and Skills",03/02/2011,Air Fares Overseas,Business & Skills Group - Advanced Manufacturing Industries,"Personal Expense, Name Witheld.",10275489,81.3
"Department for Business, Innovation and Skills","Department for Business, Innovation and Skills",03/02/2011,Hotels Overseas,Business & Skills Group - Advanced Manufacturing Industries,"Personal Expense, Name Witheld.",10275489,282.92
"Department for Business, Innovation and Skills","Department for Business, Innovation and Skills",03/02/2011,Subsistence Payments Overseas,Business & Skills Group - Advanced Manufacturing Industries,"Personal Expense, Name Witheld.",10275489,79.4
"Department for Business, Innovation and Skills","Department for Business, Innovation and Skills",03/02/2011,Rail Fares,Business & Skills Group - Advanced Manufacturing Industries,"Personal Expense, Name Witheld.",10275514,3.9
"Department for Business, Innovation and Skills","Department for Business, Innovation and Skills",03/02/2011,Coaching,Business & Skills Group - Economic Development Directorate,PRAESTA PARTNERS LLP,1018229,2565
"Department for Business, Innovation and Skills","Department for Business, Innovation and Skills",03/02/2011,Mobile Phones,Business & Skills Group - Economic Development Directorate,VODAFONE LTD,1018280,4.04
"Department for Business, Innovation and Skills","Department for Business, Innovation and Skills",03/02/2011,Mobile Phones,Business & Skills Group - Economic Development Directorate,VODAFONE LTD,1018280,6.97
"Department for Business, Innovation and Skills","Department for Business, Innovation and Skills",03/02/2011,Hire of Agency Staff (Clerical/Secretariat/Other),Business & Skills Group - Enterprise Directorate,ADECCO UK LTD,1018020,735.38
"Department for Business, Innovation and Skills","Department for Business, Innovation and Skills",03/02/2011,Mobile Phones,Business & Skills Group - Information Economy,VODAFONE LTD,1018342,29.93
"Department for Business, Innovation and Skills","Department for Business, Innovation and Skills",03/02/2011,Mobile Phones,Business & Skills Group - Information Economy,VODAFONE LTD,1018342,6.97
"Department for Business, Innovation and Skills","Department for Business, Innovation and Skills",03/02/2011,Mobile Phones,Business & Skills Group - Information Economy,VODAFONE LTD,1018343,56.98
"Department for Business, Innovation and Skills","Department for Business, Innovation and Skills",03/02/2011,Mobile Phones,Business & Skills Group - Information Economy,VODAFONE LTD,1018343,6.97
"Department for Business, Innovation and Skills","Department for Business, Innovation and Skills",03/02/2011,Mobile Phones,Business & Skills Group - Information Economy,VODAFONE LTD,1018346,0.33
"Department for Business, Innovation and Skills","Department for Business, Innovation and Skills",03/02/2011,Mobile Phones,Business & Skills Group - Information Economy,VODAFONE LTD,1018346,6.97
"Department for Business, Innovation and Skills","Department for Business, Innovation and Skills",03/02/2011,Mobile Phones,Business & Skills Group - Information Economy,VODAFONE LTD,1018348,7.03
"Department for Business, Innovation and Skills","Department for Business, Innovation and Skills",03/02/2011,Mobile Phones,Business & Skills Group - Information Economy,VODAFONE LTD,1018348,52.26
"Department for Business, Innovation and Skills","Department for Business, Innovation and Skills",03/02/2011,Mobile Phones,Business & Skills Group - Information Economy,VODAFONE LTD,1018351,1.39
"Department for Business, Innovation and Skills","Department for Business, Innovation and Skills",03/02/2011,Mobile Phones,Business & Skills Group - Information Economy,VODAFONE LTD,1018351,6.97
"Department for Business, Innovation and Skills","Department for Business, Innovation and Skills",03/02/2011,Mobile Phones,Business & Skills Group - Information Economy,VODAFONE LTD,1018351,6.59
"Department for Business, Innovation and Skills","Department for Business, Innovation and Skills",03/02/2011,Mobile Phones,Business & Skills Group - Information Economy,VODAFONE LTD,1018356,7.12
"Department for Business, Innovation and Skills","Department for Business, Innovation and Skills",03/02/2011,Mobile Phones,Business & Skills Group - Information Economy,VODAFONE LTD,1018356,6.97
"Department for Business, Innovation and Skills","Department for Business, Innovation and Skills",03/02/2011,Mobile Phones,Business & Skills Group - Information Economy,VODAFONE LTD,1018215,47.52
"Department for Business, Innovation and Skills","Department for Business, Innovation and Skills",03/02/2011,Mobile Phones,Business & Skills Group - Information Economy,VODAFONE LTD,1018215,6.97
"Department for Business, Innovation and Skills","Department for Business, Innovation and Skills",03/02/2011,Mobile Phones,Business & Skills Group - Information Economy,VODAFONE LTD,1018217,0.22
"Department for Business, Innovation and Skills","Department for Business, Innovation and Skills",03/02/2011,Mobile Phones,Business & Skills Group - Information Economy,VODAFONE LTD,1018217,6.97
"Department for Business, Innovation and Skills","Department for Business, Innovation and Skills",03/02/2011,Mobile Phones,Business & Skills Group - Information Economy,VODAFONE LTD,1018218,9.93
"Department for Business, Innovation and Skills","Department for Business, Innovation and Skills",03/02/2011,Mobile Phones,Business & Skills Group - Information Economy,VODAFONE LTD,1018218,6.97
"Department for Business, Innovation and Skills","Department for Business, Innovation and Skills",03/02/2011,Mobile Phones,Business & Skills Group - Information Economy,VODAFONE LTD,1018221,14.59
"Department for Business, Innovation and Skills","Department for Business, Innovation and Skills",03/02/2011,Mobile Phones,Business & Skills Group - Information Economy,VODAFONE LTD,1018221,6.97
"Department for Business, Innovation and Skills","Department for Business, Innovation and Skills",03/02/2011,Mobile Phones,Business & Skills Group - Information Economy,VODAFONE LTD,1018221,59.41
"Department for Business, Innovation and Skills","Department for Business, Innovation and Skills",03/02/2011,Mobile Phones,Business & Skills Group - Information Economy,VODAFONE LTD,1018221,9.4
"Department for Business, Innovation and Skills","Department for Business, Innovation and Skills",03/02/2011,Mobile Phones,Business & Skills Group - Information Economy,VODAFONE LTD,1018227,0.22
"Department for Business, Innovation and Skills","Department for Business, Innovation and Skills",03/02/2011,Mobile Phones,Business & Skills Group - Information Economy,VODAFONE LTD,1018227,6.97
"Department for Business, Innovation and Skills","Department for Business, Innovation and Skills",03/02/2011,Mobile Phones,Business & Skills Group - Information Economy,VODAFONE LTD,1018230,6.97
"Department for Business, Innovation and Skills","Department for Business, Innovation and Skills",03/02/2011,Mobile Phones,Business & Skills Group - Information Economy,VODAFONE LTD,1018230,0.22
"Department for Business, Innovation and Skills","Department for Business, Innovation and Skills",03/02/2011,Mobile Phones,Business & Skills Group - Information Economy,VODAFONE LTD,1018245,8.7
"Department for Business, Innovation and Skills","Department for Business, Innovation and Skills",03/02/2011,Mobile Phones,Business & Skills Group - Information Economy,VODAFONE LTD,1018245,0.23
"Department for Business, Innovation and Skills","Department for Business, Innovation and Skills",03/02/2011,Mobile Phones,Business & Skills Group - Information Economy,VODAFONE LTD,1018245,6.74
"Department for Business, Innovation and Skills","Department for Business, Innovation and Skills",03/02/2011,Telecommunications,Business & Skills Group - USG Admin,"Personal Expense, Name Witheld.",10275516,56.26
"Department for Business, Innovation and Skills","Department for Business, Innovation and Skills",03/02/2011,Publications,Chief Economic Advisor &BRE Group - Strategic Policy Analysis,JONES YARRELL LEADENHALL,1018307,12.56
"Department for Business, Innovation and Skills","Department for Business, Innovation and Skills",03/02/2011,Publications,Chief Economic Advisor &BRE Group - Strategic Policy Analysis,JONES YARRELL LEADENHALL,1018308,51
"Department for Business, Innovation and Skills","Department for Business, Innovation and Skills",03/02/2011,Staff Transfer/Detached Duty Costs,Finance & Commercial Group - Finance Group,"Personal Expense, Name Witheld.",10275471,401.4
"Department for Business, Innovation and Skills","Department for Business, Innovation and Skills",03/02/2011,Mobile Phones,Finance & Commercial Group - Finance Group,VODAFONE LTD,1017931,11.62
"Department for Business, Innovation and Skills","Department for Business, Innovation and Skills",03/02/2011,Mobile Phones,Finance & Commercial Group - Finance Group,VODAFONE LTD,1017931,17.6
"Department for Business, Innovation and Skills","Department for Business, Innovation and Skills",03/02/2011,Car Hire and Leasing,Finance & Commercial Group - Finance Group,ARVAL (UK) LTD,1018284,257.65
"Department for Business, Innovation and Skills","Department for Business, Innovation and Skills",03/02/2011,Mobile Line Rental,Knowledge and Innovation Group - Government Office For Science,VODAFONE LTD,1017146,2.48
"Department for Business, Innovation and Skills","Department for Business, Innovation and Skills",03/02/2011,Mobile Line Rental,Knowledge and Innovation Group - Government Office For Science,VODAFONE LTD,1017146,115.4
"Department for Business, Innovation and Skills","Department for Business, Innovation and Skills",03/02/2011,Car Hire and Leasing,Knowledge and Innovation Group - Government Office For Science,GOVERNMENT CAR AND DESPATCH AGENCY,1018261,1641.5
"Department for Business, Innovation and Skills","Department for Business, Innovation and Skills",03/02/2011,Rail Fares,Knowledge and Innovation Group - Government Office For Science,"Personal Expense, Name Witheld.",10275513,4.4
"Department for Business, Innovation and Skills","Department for Business, Innovation and Skills",03/02/2011,Catering Services,Knowledge and Innovation Group - Government Office For Science,THOMAS TELFORD LTD,1018364,1528.75
"Department for Business, Innovation and Skills","Department for Business, Innovation and Skills",03/02/2011,Publications,Knowledge and Innovation Group - Higher Education Admin,JONES YARRELL LEADENHALL,1018080,34.8
"Department for Business, Innovation and Skills","Department for Business, Innovation and Skills",03/02/2011,Static Line Rental,Knowledge and Innovation Group - Higher Education Admin,BT UK BUSINESS ACCOUNTS,1018244,58.22
"Department for Business, Innovation and Skills","Department for Business, Innovation and Skills",03/02/2011,Static Call Charges,Knowledge and Innovation Group - Higher Education Admin,BT UK BUSINESS ACCOUNTS,1018244,124.7
"Department for Business, Innovation and Skills","Department for Business, Innovation and Skills",03/02/2011,Static Call Charges,Knowledge and Innovation Group - Higher Education Admin,BT UK BUSINESS ACCOUNTS,1018244,2
"Department for Business, Innovation and Skills","Department for Business, Innovation and Skills",03/02/2011,Other Telephone Costs,Knowledge and Innovation Group - Higher Education Admin,BT UK BUSINESS ACCOUNTS,1018244,9
"Department for Business, Innovation and Skills","Department for Business, Innovation and Skills",03/02/2011,Rail Fares,Knowledge and Innovation Group - Innovation,JANETTE NIMMO,1018096,14.8
"Department for Business, Innovation and Skills","Department for Business, Innovation and Skills",03/02/2011,Interpreters,Knowledge and Innovation Group - Innovation,JANETTE NIMMO,1018096,80
"Department for Business, Innovation and Skills","Department for Business, Innovation and Skills",03/02/2011,Taxis,Knowledge and Innovation Group - Research Base,"Personal Expense, Name Witheld.",10275510,18.2
"Department for Business, Innovation and Skills","Department for Business, Innovation and Skills",03/02/2011,Rail Fares,Knowledge and Innovation Group - UK Space Agency,"Personal Expense, Name Witheld.",10275490,10.6
"Department for Business, Innovation and Skills","Department for Business, Innovation and Skills",03/02/2011,Rail Fares Overseas,Knowledge and Innovation Group - UK Space Agency,"Personal Expense, Name Witheld.",10275490,2.82
"Department for Business, Innovation and Skills","Department for Business, Innovation and Skills",03/02/2011,Hotels Overseas,Knowledge and Innovation Group - UK Space Agency,"Personal Expense, Name Witheld.",10275490,140
"Department for Business, Innovation and Skills","Department for Business, Innovation and Skills",03/02/2011,Subsistence Payments Overseas,Knowledge and Innovation Group - UK Space Agency,"Personal Expense, Name Witheld.",10275490,20.99
"Department for Business, Innovation and Skills","Department for Business, Innovation and Skills",03/02/2011,Subsistence Payments Overseas,Knowledge and Innovation Group - UK Space Agency,"Personal Expense, Name Witheld.",10275490,1.69
"Department for Business, Innovation and Skills","Department for Business, Innovation and Skills",03/02/2011,Other Overseas Travel & Subsistence,Knowledge and Innovation Group - UK Space Agency,"Personal Expense, Name Witheld.",10275490,10
"Department for Business, Innovation and Skills","Department for Business, Innovation and Skills",03/02/2011,Hire of Agency Staff (Professional/Management),"Legal, People & Communications Group - Communications Directorate",MICHAEL PAGE INTERNATIONAL RECRUITMENT LTD,1018240,3012
"Department for Business, Innovation and Skills","Department for Business, Innovation and Skills",03/02/2011,Press Office Facilities,"Legal, People & Communications Group - Communications Directorate",VODAFONE LTD,1018257,4.7
"Department for Business, Innovation and Skills","Department for Business, Innovation and Skills",03/02/2011,Press Office Facilities,"Legal, People & Communications Group - Communications Directorate",VODAFONE LTD,1018257,111.49
"Department for Business, Innovation and Skills","Department for Business, Innovation and Skills",03/02/2011,Publications,"Legal, People & Communications Group - CTC Summary",JONES YARRELL LEADENHALL,1018077,17.85
"Department for Business, Innovation and Skills","Department for Business, Innovation and Skills",03/02/2011,Other Accommodation Charges,"Legal, People & Communications Group - HRCM - Human Resources and Change Management Directorate",DRAGON FIRE & SECURITY SYSTEMS LTD,1018205,257.6
"Department for Business, Innovation and Skills","Department for Business, Innovation and Skills",03/02/2011,Publications,"Legal, People & Communications Group - Legal",LEXISNEXIS BUTTERWORTHS,1018328,302.1
"Department for Business, Innovation and Skills","Department for Business, Innovation and Skills",03/02/2011,Car Hire and Leasing,"Legal, People & Communications Group - Legal",ARVAL (UK) LTD,1018170,410.57
"Department for Business, Innovation and Skills","Department for Business, Innovation and Skills",03/02/2011,Legal Services and Advice Agency,"Legal, People & Communications Group - Legal",VENN GROUP LTD,1018302,1356
"Department for Business, Innovation and Skills","Department for Business, Innovation and Skills",03/02/2011,Legal Services and Advice Agency,"Legal, People & Communications Group - Legal",VENN GROUP LTD,1018304,1728
"Department for Business, Innovation and Skills","Department for Business, Innovation and Skills",03/02/2011,Legal Services and Advice Agency,"Legal, People & Communications Group - Legal",VENN GROUP LTD,1018305,1731.84
"Department for Business, Innovation and Skills","Department for Business, Innovation and Skills",03/02/2011,Legal Services and Advice Agency,"Legal, People & Communications Group - Legal",VENN GROUP LTD,1018366,1575.84
"Department for Business, Innovation and Skills","Department for Business, Innovation and Skills",03/02/2011,Mobile Call Charges,Market and Frameworks Group - ECO,VODAFONE LTD,1018247,0.76
"Department for Business, Innovation and Skills","Department for Business, Innovation and Skills",03/02/2011,Mobile Call Charges,Market and Frameworks Group - ECO,VODAFONE LTD,1018247,6.97
"Department for Business, Innovation and Skills","Department for Business, Innovation and Skills",03/02/2011,Mobile Call Charges,Market and Frameworks Group - ECO,VODAFONE LTD,1018252,1.41
"Department for Business, Innovation and Skills","Department for Business, Innovation and Skills",03/02/2011,Mobile Call Charges,Market and Frameworks Group - ECO,VODAFONE LTD,1018252,2.17
"Department for Business, Innovation and Skills","Department for Business, Innovation and Skills",03/02/2011,Mobile Call Charges,Market and Frameworks Group - ECO,VODAFONE LTD,1018254,9.11
"Department for Business, Innovation and Skills","Department for Business, Innovation and Skills",03/02/2011,Mobile Call Charges,Market and Frameworks Group - ECO,VODAFONE LTD,1018254,6.97
"Department for Business, Innovation and Skills","Department for Business, Innovation and Skills",03/02/2011,Mobile Call Charges,Market and Frameworks Group - ECO,VODAFONE LTD,1018256,16.77
"Department for Business, Innovation and Skills","Department for Business, Innovation and Skills",03/02/2011,Mobile Call Charges,Market and Frameworks Group - ECO,VODAFONE LTD,1018256,6.97
"Department for Business, Innovation and Skills","Department for Business, Innovation and Skills",03/02/2011,Mobile Call Charges,Market and Frameworks Group - ECO,VODAFONE LTD,1018258,38.99
"Department for Business, Innovation and Skills","Department for Business, Innovation and Skills",03/02/2011,Mobile Call Charges,Market and Frameworks Group - ECO,VODAFONE LTD,1018258,6.97
"Department for Business, Innovation and Skills","Department for Business, Innovation and Skills",03/02/2011,Mobile Phones,Market and Frameworks Group - Europe and World Trade Directorates,VODAFONE LTD,1017950,0.45
"Department for Business, Innovation and Skills","Department for Business, Innovation and Skills",03/02/2011,Mobile Phones,Market and Frameworks Group - Europe and World Trade Directorates,VODAFONE LTD,1017950,13.94
"Department for Business, Innovation and Skills","Department for Business, Innovation and Skills",03/02/2011,Rail Fares,Market and Frameworks Group - Europe and World Trade Directorates,"Personal Expense, Name Witheld.",10275487,109
"Department for Business, Innovation and Skills","Department for Business, Innovation and Skills",03/02/2011,Subsistence Payments Overseas,Market and Frameworks Group - Europe and World Trade Directorates,"Personal Expense, Name Witheld.",10275487,10
"Department for Business, Innovation and Skills","Department for Business, Innovation and Skills",03/02/2011,Insolvency Service Policy Work,Market and Frameworks Group - Insolvency Service,THE INSOLVENCY SERVICE,1018341,132000
"Department for Business, Innovation and Skills","Department for Business, Innovation and Skills",03/02/2011,Taxis,Ministerial and Parliamentary Support Team - Ministerial and Parliamentary Support Team,"Personal Expense, Name Witheld.",10275515,11
"Department for Business, Innovation and Skills","Department for Business, Innovation and Skills",03/02/2011,Hire of Agency Staff (Professional/Management),Ministerial and Parliamentary Support Team - Ministerial and Parliamentary Support Team,BROOK STREET (UK) LTD,1018235,1064.76
"Department for Business, Innovation and Skills","Department for Business, Innovation and Skills",03/02/2011,Hire of Agency Staff (Clerical/Secretariat/Other),Ministerial and Parliamentary Support Team - Ministerial and Parliamentary Support Team,ADECCO UK LTD,1018098,571.99
"Department for Business, Innovation and Skills","Department for Business, Innovation and Skills",03/02/2011,Taxis,Shareholder Executive - Shareholder Executive,CLIMATE CARS LTD,1018290,170.92
"Department for Business, Innovation and Skills","Department for Business, Innovation and Skills",03/02/2011,ICT Infrastructure Specific Service,Finance & Commercial Group - Information and Workplace Strategies,XMA LTD,1017528,9368.35
"Department for Business, Innovation and Skills","Department for Business, Innovation and Skills",03/02/2011,ICT Maintenance & Upkeep,Finance & Commercial Group - Information and Workplace Strategies,COMPANIES HOUSE,1017842,5
"Department for Business, Innovation and Skills","Department for Business, Innovation and Skills",03/02/2011,ICT Maintenance & Upkeep,Finance & Commercial Group - Information and Workplace Strategies,COMPANIES HOUSE,1017844,5
"Department for Business, Innovation and Skills","Department for Business, Innovation and Skills",03/02/2011,ICT Maintenance & Upkeep,Finance & Commercial Group - Information and Workplace Strategies,COMPANIES HOUSE,1017846,5
"Department for Business, Innovation and Skills","Department for Business, Innovation and Skills",03/02/2011,ICT Maintenance & Upkeep,Finance & Commercial Group - Information and Workplace Strategies,COMPANIES HOUSE,1017847,5
"Department for Business, Innovation and Skills","Department for Business, Innovation and Skills",03/02/2011,ICT Maintenance & Upkeep,Finance & Commercial Group - Information and Workplace Strategies,COMPANIES HOUSE,1017848,5
"Department for Business, Innovation and Skills","Department for Business, Innovation and Skills",03/02/2011,ICT Maintenance & Upkeep,Finance & Commercial Group - Information and Workplace Strategies,COMPANIES HOUSE,1017849,5
"Department for Business, Innovation and Skills","Department for Business, Innovation and Skills",03/02/2011,ICT Maintenance & Upkeep,Finance & Commercial Group - Information and Workplace Strategies,COMPANIES HOUSE,1017850,5
"Department for Business, Innovation and Skills","Department for Business, Innovation and Skills",03/02/2011,ICT Maintenance & Upkeep,Finance & Commercial Group - Information and Workplace Strategies,COMPANIES HOUSE,1017851,5
"Department for Business, Innovation and Skills","Department for Business, Innovation and Skills",03/02/2011,ICT Maintenance & Upkeep,Finance & Commercial Group - Information and Workplace Strategies,COMPANIES HOUSE,1017854,5
"Department for Business, Innovation and Skills","Department for Business, Innovation and Skills",03/02/2011,ICT Maintenance & Upkeep,Finance & Commercial Group - Information and Workplace Strategies,COMPANIES HOUSE,1017857,5
"Department for Business, Innovation and Skills","Department for Business, Innovation and Skills",03/02/2011,ICT Maintenance & Upkeep,Finance & Commercial Group - Information and Workplace Strategies,COMPANIES HOUSE,1017859,5
"Department for Business, Innovation and Skills","Department for Business, Innovation and Skills",03/02/2011,ICT Maintenance & Upkeep,Finance & Commercial Group - Information and Workplace Strategies,COMPANIES HOUSE,1017861,5
"Department for Business, Innovation and Skills","Department for Business, Innovation and Skills",03/02/2011,ICT Infrastructure Specific Service,Finance & Commercial Group - Information and Workplace Strategies,XMA LTD,1018049,2243.76
"Department for Business, Innovation and Skills","Department for Business, Innovation and Skills",03/02/2011,Standard Desktop Plus Service (PFI),Finance & Commercial Group - Information and Workplace Strategies,FUJITSU SERVICES LTD,1018165,110.34
"Department for Business, Innovation and Skills","Department for Business, Innovation and Skills",03/02/2011,ICT Infrastructure Specific Service (PFI),Finance & Commercial Group - Information and Workplace Strategies,FUJITSU SERVICES LTD,1018175,152.32
"Department for Business, Innovation and Skills","Department for Business, Innovation and Skills",03/02/2011,Standard Desktop Services (PFI),Finance & Commercial Group - Information and Workplace Strategies,FUJITSU SERVICES LTD,1018179,521.99
"Department for Business, Innovation and Skills","Department for Business, Innovation and Skills",03/02/2011,ICT Business Specific Application Services (PFI),Finance & Commercial Group - Information and Workplace Strategies,FUJITSU SERVICES LTD,1018182,4.83
"Department for Business, Innovation and Skills","Department for Business, Innovation and Skills",03/02/2011,Standard Desktop Plus Service (PFI),Finance & Commercial Group - Information and Workplace Strategies,FUJITSU SERVICES LTD,1018184,859.35
"Department for Business, Innovation and Skills","Department for Business, Innovation and Skills",03/02/2011,ICT Business Specific Application Services (PFI),Finance & Commercial Group - Information and Workplace Strategies,FUJITSU SERVICES LTD,1018185,8.66
"Department for Business, Innovation and Skills","Department for Business, Innovation and Skills",03/02/2011,Standard Desktop Plus Service (PFI),Finance & Commercial Group - Information and Workplace Strategies,FUJITSU SERVICES LTD,1018188,122.07
"Department for Business, Innovation and Skills","Department for Business, Innovation and Skills",03/02/2011,Standard Desktop Plus Service (PFI),Finance & Commercial Group - Information and Workplace Strategies,FUJITSU SERVICES LTD,1018189,236.61
"Department for Business, Innovation and Skills","Department for Business, Innovation and Skills",03/02/2011,Standard Desktop Services (PFI),Finance & Commercial Group - Information and Workplace Strategies,FUJITSU SERVICES LTD,1018190,3738.37
"Department for Business, Innovation and Skills","Department for Business, Innovation and Skills",03/02/2011,ICT Business Specific Application Services (PFI),Finance & Commercial Group - Information and Workplace Strategies,FUJITSU SERVICES LTD,1018192,1188.9
"Department for Business, Innovation and Skills","Department for Business, Innovation and Skills",03/02/2011,Standard Desktop Plus Service (PFI),Finance & Commercial Group - Information and Workplace Strategies,FUJITSU SERVICES LTD,1018193,173.07
"Department for Business, Innovation and Skills","Department for Business, Innovation and Skills",03/02/2011,ICT Business Specific Application Services (PFI),Finance & Commercial Group - Information and Workplace Strategies,FUJITSU SERVICES LTD,1018194,323.24
"Department for Business, Innovation and Skills","Department for Business, Innovation and Skills",03/02/2011,Standard Desktop Plus Service (PFI),Finance & Commercial Group - Information and Workplace Strategies,FUJITSU SERVICES LTD,1018195,73.62
"Department for Business, Innovation and Skills","Department for Business, Innovation and Skills",03/02/2011,ICT Infrastructure Specific Service (PFI),Finance & Commercial Group - Information and Workplace Strategies,FUJITSU SERVICES LTD,1018196,530.45
"Department for Business, Innovation and Skills","Department for Business, Innovation and Skills",03/02/2011,Standard Desktop Plus Service (PFI),Finance & Commercial Group - Information and Workplace Strategies,FUJITSU SERVICES LTD,1018197,307.46
"Department for Business, Innovation and Skills","Department for Business, Innovation and Skills",03/02/2011,ICT Infrastructure Specific Service (PFI),Finance & Commercial Group - Information and Workplace Strategies,FUJITSU SERVICES LTD,1018198,4794
"Department for Business, Innovation and Skills","Department for Business, Innovation and Skills",03/02/2011,Standard Desktop Plus Service (PFI),Finance & Commercial Group - Information and Workplace Strategies,FUJITSU SERVICES LTD,1018199,493.56
"Department for Business, Innovation and Skills","Department for Business, Innovation and Skills",03/02/2011,Standard Desktop Plus Service (PFI),Finance & Commercial Group - Information and Workplace Strategies,FUJITSU SERVICES LTD,1018204,108.47
"Department for Business, Innovation and Skills","Department for Business, Innovation and Skills",03/02/2011,ICT Infrastructure Specific Service (PFI),Finance & Commercial Group - Information and Workplace Strategies,FUJITSU SERVICES LTD,1018216,48.75
"Department for Business, Innovation and Skills","Department for Business, Innovation and Skills",03/02/2011,ICT Infrastructure Specific Service (PFI),Finance & Commercial Group - Information and Workplace Strategies,FUJITSU SERVICES LTD,1018220,216
"Department for Business, Innovation and Skills","Department for Business, Innovation and Skills",03/02/2011,Standard Desktop Plus Service (PFI),Finance & Commercial Group - Information and Workplace Strategies,FUJITSU SERVICES LTD,1018222,8.02
"Department for Business, Innovation and Skills","Department for Business, Innovation and Skills",03/02/2011,Standard Desktop Plus Service (PFI),Finance & Commercial Group - Information and Workplace Strategies,FUJITSU SERVICES LTD,1018223,8.2
"Department for Business, Innovation and Skills","Department for Business, Innovation and Skills",03/02/2011,Standard Desktop Plus Service (PFI),Finance & Commercial Group - Information and Workplace Strategies,FUJITSU SERVICES LTD,1018224,4660
"Department for Business, Innovation and Skills","Department for Business, Innovation and Skills",03/02/2011,Standard Desktop Plus Service (PFI),Finance & Commercial Group - Information and Workplace Strategies,FUJITSU SERVICES LTD,1018228,401.59
"Department for Business, Innovation and Skills","Department for Business, Innovation and Skills",03/02/2011,ICT Business Specific Application Services (PFI),Finance & Commercial Group - Information and Workplace Strategies,FUJITSU SERVICES LTD,1018237,4388.33
"Department for Business, Innovation and Skills","Department for Business, Innovation and Skills",03/02/2011,Standard Desktop Plus Service (PFI),Finance & Commercial Group - Information and Workplace Strategies,FUJITSU SERVICES LTD,1018243,8.2
"Department for Business, Innovation and Skills","Department for Business, Innovation and Skills",03/02/2011,Flexible Computing Service (PFI),Finance & Commercial Group - Information and Workplace Strategies,FUJITSU SERVICES LTD,1018246,18792.67
"Department for Business, Innovation and Skills","Department for Business, Innovation and Skills",03/02/2011,ICT Business Specific Application Services (PFI),Finance & Commercial Group - Information and Workplace Strategies,FUJITSU SERVICES LTD,1018249,6858
"Department for Business, Innovation and Skills","Department for Business, Innovation and Skills",03/02/2011,Standard Desktop Plus Service (PFI),Finance & Commercial Group - Information and Workplace Strategies,FUJITSU SERVICES LTD,1018255,120.01
"Department for Business, Innovation and Skills","Department for Business, Innovation and Skills",03/02/2011,Standard Desktop Plus Service (PFI),Finance & Commercial Group - Information and Workplace Strategies,FUJITSU SERVICES LTD,1018259,475.43
"Department for Business, Innovation and Skills","Department for Business, Innovation and Skills",03/02/2011,ICT Infrastructure Specific Service,Finance & Commercial Group - Information and Workplace Strategies,XMA LTD,1018296,1145.4
"Department for Business, Innovation and Skills","Department for Business, Innovation and Skills",03/02/2011,ICT Infrastructure Specific Service,Finance & Commercial Group - Information and Workplace Strategies,XMA LTD,1018298,343.62
"Department for Business, Innovation and Skills","Department for Business, Innovation and Skills",03/02/2011,ICT Infrastructure Specific Service (PFI),Finance & Commercial Group - Information and Workplace Strategies,FUJITSU SERVICES LTD,1018312,615.68
"Department for Business, Innovation and Skills","Department for Business, Innovation and Skills",03/02/2011,ICT Infrastructure Specific Service (PFI),Finance & Commercial Group - Information and Workplace Strategies,FUJITSU SERVICES LTD,1018312,1049.58
"Department for Business, Innovation and Skills","Department for Business, Innovation and Skills",03/02/2011,Standard Desktop Plus Service (PFI),Finance & Commercial Group - Information and Workplace Strategies,FUJITSU SERVICES LTD,1018314,11.58
"Department for Business, Innovation and Skills","Department for Business, Innovation and Skills",03/02/2011,ICT Business Specific Application Services (PFI),Finance & Commercial Group - Information and Workplace Strategies,FUJITSU SERVICES LTD,1018340,3142.77
"Department for Business, Innovation and Skills","Department for Business, Innovation and Skills",03/02/2011,Standard Desktop Plus Service (PFI),Finance & Commercial Group - Information and Workplace Strategies,FUJITSU SERVICES LTD,1018360,389.86
"Department for Business, Innovation and Skills","Department for Business, Innovation and Skills",03/02/2011,Standard Desktop Plus Service (PFI),Finance & Commercial Group - Information and Workplace Strategies,FUJITSU SERVICES LTD,1018362,21.57
"Department for Business, Innovation and Skills","Department for Business, Innovation and Skills",03/02/2011,Standard Desktop Services (PFI),Finance & Commercial Group - Information and Workplace Strategies,FUJITSU SERVICES LTD,1018363,18773.58
"Department for Business, Innovation and Skills","Department for Business, Innovation and Skills",03/02/2011,ICT Maintenance & Upkeep (PFI),Finance & Commercial Group - Information and Workplace Strategies,FUJITSU SERVICES LTD,1018181,314.5
"Department for Business, Innovation and Skills","Department for Business, Innovation and Skills",03/02/2011,ICT Maintenance & Upkeep,Finance & Commercial Group - Information and Workplace Strategies,CAPGEMINI UK plc,1018200,1105.5
"Department for Business, Innovation and Skills","Department for Business, Innovation and Skills",03/02/2011,ICT Maintenance & Upkeep,Finance & Commercial Group - Information and Workplace Strategies,METHODS CONSULTING LTD,1018236,14100
"Department for Business, Innovation and Skills","Department for Business, Innovation and Skills",03/02/2011,Refuse Disposals,Finance & Commercial Group - Information and Workplace Strategies,M & L DOCUMENT DESTRUCTION & RECYCLING LTD,1018131,40
"Department for Business, Innovation and Skills","Department for Business, Innovation and Skills",03/02/2011,Maintenance,Finance & Commercial Group - Information and Workplace Strategies,WATERCOOLERS SOUTHERN LTD,1018225,30.29
"Department for Business, Innovation and Skills","Department for Business, Innovation and Skills",03/02/2011,Courier Services,Finance & Commercial Group - Information and Workplace Strategies,TNT UK LTD,1018288,111.85
"Department for Business, Innovation and Skills","Department for Business, Innovation and Skills",03/02/2011,Courier Services,Finance & Commercial Group - Information and Workplace Strategies,TNT INTERNATIONAL UK,1018292,232.78
"Department for Business, Innovation and Skills","Department for Business, Innovation and Skills",03/02/2011,Courier Services,Finance & Commercial Group - Information and Workplace Strategies,TNT INTERNATIONAL UK,1018292,70.19
"Department for Business, Innovation and Skills","Department for Business, Innovation and Skills",03/02/2011,Water,Finance & Commercial Group - Information and Workplace Strategies,SCOTTISH WATER BUSINESS STREAM LTD T/A BUSINESS STREAM,1018297,7349.06
"Department for Business, Innovation and Skills","Department for Business, Innovation and Skills",03/02/2011,Mail and Messenger Contract Costs,Finance & Commercial Group - Information and Workplace Strategies,MANPOWER UK LTD,1018349,564.76
"Department for Business, Innovation and Skills","Department for Business, Innovation and Skills",03/02/2011,Mail and Messenger Contract Costs,Finance & Commercial Group - Information and Workplace Strategies,MANPOWER UK LTD,1018354,531
"Department for Business, Innovation and Skills","Department for Business, Innovation and Skills",03/02/2011,Mail and Messenger Contract Costs,Finance & Commercial Group - Information and Workplace Strategies,MANPOWER UK LTD,1018357,790.6
"Department for Business, Innovation and Skills","Department for Business, Innovation and Skills",03/02/2011,Car Hire and Leasing,"Legal, People & Communications Group - HRCM - Human Resources and Change Management Directorate",ARVAL (UK) LTD,1018287,148.4
"Department for Business, Innovation and Skills","Department for Business, Innovation and Skills",03/02/2011,Car Hire and Leasing,"Legal, People & Communications Group - HRCM - Human Resources and Change Management Directorate",ARVAL (UK) LTD,1018291,86.48
"Department for Business, Innovation and Skills","Department for Business, Innovation and Skills",03/02/2011,Leadership & People Management Training,"Legal, People & Communications Group - HRCM - Human Resources and Change Management Directorate",LEARNLAB LTD,1018267,8915
"Department for Business, Innovation and Skills","Department for Business, Innovation and Skills",03/02/2011,Leadership & People Management Training,"Legal, People & Communications Group - HRCM - Human Resources and Change Management Directorate",LEARNLAB LTD,1018267,0.2
"Department for Business, Innovation and Skills","Department for Business, Innovation and Skills",03/02/2011,Accelerated Development Programme/Fast Stream Training,"Legal, People & Communications Group - HRCM - Human Resources and Change Management Directorate",COMMUNICAID GROUP LTD,1018172,769.8
"Department for Business, Innovation and Skills","Department for Business, Innovation and Skills",03/02/2011,Economic Consultancy and Research,Business & Skills Group - Enterprise Directorate,EKOS CONSULTING (UK) LTD T/A EKOSGEN,1018347,6981.75
"Department for Business, Innovation and Skills","Department for Business, Innovation and Skills",03/02/2011,Contributions (Programme),Business & Skills Group - Information Economy,UNIVERSITY OF ABERTAY DUNDEE,1018144,152150.46
"Department for Business, Innovation and Skills","Department for Business, Innovation and Skills",03/02/2011,Contributions (Programme),Business & Skills Group - Information Economy,UNIVERSITY OF ABERTAY DUNDEE,1018144,646858
"Department for Business, Innovation and Skills","Department for Business, Innovation and Skills",03/02/2011,Purchase of Completed Research,Business & Skills Group - Advanced Manufacturing Industries,VERDICT RESEARCH LTD,1018207,11500
"Department for Business, Innovation and Skills","Department for Business, Innovation and Skills",03/02/2011,Research & Development Expenditure (Programme),Business & Skills Group - Advanced Manufacturing Industries,THE INSTITUTION OF CIVIL ENGINEERS,1018238,7000
"Department for Business, Innovation and Skills","Department for Business, Innovation and Skills",03/02/2011,Grants - Non Statutory - Current - Other,Knowledge and Innovation Group - Innovation,BRITISH STANDARDS INSTITUTION (BSI),1018345,4918.08
"Department for Business, Innovation and Skills","Department for Business, Innovation and Skills",03/02/2011,Grants - Statutory - Current - Other,Knowledge and Innovation Group - Research Base,THE ROYAL SOCIETY,1018120,950000
"Department for Business, Innovation and Skills","Department for Business, Innovation and Skills",03/02/2011,Grants - Statutory - Current - Other,Knowledge and Innovation Group - Research Base,"ROYAL ACADEMY OF ENGINEERING, RAE",1018123,918371
"Department for Business, Innovation and Skills","Department for Business, Innovation and Skills",03/02/2011,Grants - Statutory - Current - Other,Knowledge and Innovation Group - Research Base,THE BRITISH ACADEMY,1018119,3310863
"Department for Business, Innovation and Skills","Department for Business, Innovation and Skills",03/02/2011,Research & Development Expenditure (Programme),Knowledge and Innovation Group - Government Office For Science,SERGE MICHEL GARCIA,1008653,2587.8
"Department for Business, Innovation and Skills","Department for Business, Innovation and Skills",03/02/2011,Research & Development Expenditure (Programme),Knowledge and Innovation Group - Government Office For Science,LONDON SCHOOL OF HYGIENE & TROPICAL MEDICINE,1018233,8000
"Department for Business, Innovation and Skills","Department for Business, Innovation and Skills",03/02/2011,Research & Development Expenditure (Programme),Knowledge and Innovation Group - Government Office For Science,UNIVERSITY OF NEWCASTLE UPON TYNE,1018281,800
"Department for Business, Innovation and Skills","Department for Business, Innovation and Skills",03/02/2011,Air Fares  - Overseas (Programme),Knowledge and Innovation Group - Research Base,UNIVERSITAETSKLINIKUM CGC DRESDEN,1017955,279.96
"Department for Business, Innovation and Skills","Department for Business, Innovation and Skills",03/02/2011,Air Fares  - Overseas (Programme),Knowledge and Innovation Group - Research Base,RIBA HOLDINGS LTD,1018275,1000
"Department for Business, Innovation and Skills","Department for Business, Innovation and Skills",03/02/2011,Outsourced Programme Management Services,Market and Frameworks Group - Employment Relations,MEMORIAL UNIVERSITY OF NEWFOUNDLAND,1017747,656.32
"Department for Business, Innovation and Skills","Department for Business, Innovation and Skills",03/02/2011,International Subscriptions,Market and Frameworks Group - Europe and World Trade Directorates,WORLD TRADE ORGANISATION,1017823,6475270.32
"Department for Business, Innovation and Skills","Department for Business, Innovation and Skills",04/02/2011,Recoverable VAT Input,Corporate Payments - ,FUJITSU SERVICES LTD,1018353,-0.01
"Department for Business, Innovation and Skills","Department for Business, Innovation and Skills",04/02/2011,Payments to Redfern for Rail Travel Contract,Finance & Commercial Group - Finance Group,REDFERN TRAVEL LTD,1018410,116735.21
"Department for Business, Innovation and Skills","Department for Business, Innovation and Skills",04/02/2011,Payments to Redfern for Rail Travel Contract,Finance & Commercial Group - Finance Group,REDFERN TRAVEL LTD,1018411,10003.3
"Department for Business, Innovation and Skills","Department for Business, Innovation and Skills",04/02/2011,Payments to Redfern for Rail Travel Contract,Finance & Commercial Group - Finance Group,REDFERN TRAVEL LTD,1018441,1111.85
"Department for Business, Innovation and Skills","Department for Business, Innovation and Skills",04/02/2011,Leased Buildings - Clearing,Finance & Commercial Group - Information and Workplace Strategies,EC HARRIS LLP,1018324,8154
"Department for Business, Innovation and Skills","Department for Business, Innovation and Skills",04/02/2011,Leased Buildings - Clearing,Finance & Commercial Group - Information and Workplace Strategies,EC HARRIS LLP,1018425,7415.76
"Department for Business, Innovation and Skills","Department for Business, Innovation and Skills",04/02/2011,Leased Buildings - Clearing,Finance & Commercial Group - Information and Workplace Strategies,SALTASH ENTERPRISES LTD,1018426,966
"Department for Business, Innovation and Skills","Department for Business, Innovation and Skills",04/02/2011,Leased Buildings - Clearing,Finance & Commercial Group - Information and Workplace Strategies,M J FERGUSON LTD,1018447,125252.85
"Department for Business, Innovation and Skills","Department for Business, Innovation and Skills",04/02/2011,Leased Buildings - Clearing,Finance & Commercial Group - Information and Workplace Strategies,M J FERGUSON LTD,1018447,1815.82
"Department for Business, Innovation and Skills","Department for Business, Innovation and Skills",04/02/2011,Leased Buildings - Clearing,Finance & Commercial Group - Information and Workplace Strategies,M J FERGUSON LTD,1018448,65736.69
"Department for Business, Innovation and Skills","Department for Business, Innovation and Skills",04/02/2011,Grant in Aid - Current -Other,Business & Skills Group - Enterprise Directorate,CAPITAL FOR ENTERPRISE LTD,1018128,8.92
"Department for Business, Innovation and Skills","Department for Business, Innovation and Skills",04/02/2011,Grants - Non Statutory - Current - Other,Market and Frameworks Group - Consumer and Competition Policy,CARDIFF COUNTY COUNCIL,1018421,114998.57
"Department for Business, Innovation and Skills","Department for Business, Innovation and Skills",04/02/2011,Departmental Sponsored Training (Programme),Knowledge and Innovation Group - Learners,MINISTRY OF DEFENCE,1018422,2838
"Department for Business, Innovation and Skills","Department for Business, Innovation and Skills",04/02/2011,Departmental Sponsored Training (Programme),Knowledge and Innovation Group - Learners,MINISTRY OF DEFENCE,1018424,2450
"Department for Business, Innovation and Skills","Department for Business, Innovation and Skills",04/02/2011,Non-Grant in Aid Funding of Bodies (Departmental and Non-Departmental),Market and Frameworks Group - Insolvency Service,THE INSOLVENCY SERVICE,1018413,2000000
"Department for Business, Innovation and Skills","Department for Business, Innovation and Skills",04/02/2011,Criminal Law and Prosecution Work,"Legal, People & Communications Group - Legal",KJB Partners Ltd,1018427,2341.92
"Department for Business, Innovation and Skills","Department for Business, Innovation and Skills",04/02/2011,Criminal Law and Prosecution Work,"Legal, People & Communications Group - Legal",KJB Partners Ltd,1018430,2902.69
"Department for Business, Innovation and Skills","Department for Business, Innovation and Skills",04/02/2011,Criminal Law and Prosecution Work,"Legal, People & Communications Group - Legal",MENDIP MEDIA GROUP LTD,1018445,791.02
"Department for Business, Innovation and Skills","Department for Business, Innovation and Skills",04/02/2011,Criminal Law and Prosecution Work,"Legal, People & Communications Group - Legal",MENDIP MEDIA GROUP LTD,1018446,350
"Department for Business, Innovation and Skills","Department for Business, Innovation and Skills",04/02/2011,Criminal Law and Prosecution Work,"Legal, People & Communications Group - Legal",FCO SERVICES,1018451,574.28
"Department for Business, Innovation and Skills","Department for Business, Innovation and Skills",04/02/2011,Electricity (Programme),Finance & Commercial Group - Information and Workplace Strategies,E-ON ENERGY LTD,1018423,992.37
"Department for Business, Innovation and Skills","Department for Business, Innovation and Skills",04/02/2011,Electricity (Programme),Finance & Commercial Group - Information and Workplace Strategies,E-ON ENERGY LTD,1018423,194.36
"Department for Business, Innovation and Skills","Department for Business, Innovation and Skills",04/02/2011,Electricity (Programme),Finance & Commercial Group - Information and Workplace Strategies,E-ON ENERGY LTD,1018428,737.84
"Department for Business, Innovation and Skills","Department for Business, Innovation and Skills",04/02/2011,Electricity (Programme),Finance & Commercial Group - Information and Workplace Strategies,E-ON ENERGY LTD,1018428,144.49
"Department for Business, Innovation and Skills","Department for Business, Innovation and Skills",04/02/2011,Service Charges (Programme),Finance & Commercial Group - Information and Workplace Strategies,CB RICHARD ELLIS,1018463,64715.15
"Department for Business, Innovation and Skills","Department for Business, Innovation and Skills",04/02/2011,Service Charges (Programme),Finance & Commercial Group - Information and Workplace Strategies,CB RICHARD ELLIS,1018465,61903.13
"Department for Business, Innovation and Skills","Department for Business, Innovation and Skills",04/02/2011,IT Services (Programme),"Legal, People & Communications Group - Communications Directorate",DOUGLAS LANG T/A NETDOTNET,1018355,135
"Department for Business, Innovation and Skills","Department for Business, Innovation and Skills",04/02/2011,IT Services (Programme),"Legal, People & Communications Group - Communications Directorate",FUJITSU SERVICES LTD,1018468,60
"Department for Business, Innovation and Skills","Department for Business, Innovation and Skills",04/02/2011,IT Services (Programme),"Legal, People & Communications Group - Communications Directorate",FUJITSU SERVICES LTD,1018473,60
"Department for Business, Innovation and Skills","Department for Business, Innovation and Skills",04/02/2011,Interest on Post Office Working Captial Loans,Shareholder Executive - Shareholder Executive,POST OFFICE LTD C/O ROYAL MAIL,1018452,-4421.26
"Department for Business, Innovation and Skills","Department for Business, Innovation and Skills",04/02/2011,Additions Post Office Ltd - Loans from Vote,Shareholder Executive - Shareholder Executive,POST OFFICE LTD C/O ROYAL MAIL,1018452,100000000
"Department for Business, Innovation and Skills","Department for Business, Innovation and Skills",04/02/2011,Mobile Phones,Business & Skills Group - Advanced Manufacturing Industries,O2,1018367,14.29
"Department for Business, Innovation and Skills","Department for Business, Innovation and Skills",04/02/2011,Mobile Line Rental,Business & Skills Group - Advanced Manufacturing Industries,VODAFONE LTD,1018396,87.84
"Department for Business, Innovation and Skills","Department for Business, Innovation and Skills",04/02/2011,Mobile Line Rental,Business & Skills Group - Advanced Manufacturing Industries,VODAFONE LTD,1018396,48.8
"Department for Business, Innovation and Skills","Department for Business, Innovation and Skills",04/02/2011,Telecommunications,Business & Skills Group - Advanced Manufacturing Industries,VODAFONE LTD,1018277,4.48
"Department for Business, Innovation and Skills","Department for Business, Innovation and Skills",04/02/2011,Telecommunications,Business & Skills Group - Advanced Manufacturing Industries,VODAFONE LTD,1018277,52.26
"Department for Business, Innovation and Skills","Department for Business, Innovation and Skills",04/02/2011,Professional Subscriptions,Business & Skills Group - Advanced Manufacturing Industries,"Personal Expense, Name Witheld.",10275531,300
"Department for Business, Innovation and Skills","Department for Business, Innovation and Skills",04/02/2011,Mobile Call Charges,Business & Skills Group - Advanced Manufacturing Industries,VODAFONE LTD,1018398,3.9
"Department for Business, Innovation and Skills","Department for Business, Innovation and Skills",04/02/2011,Mobile Call Charges,Business & Skills Group - Advanced Manufacturing Industries,VODAFONE LTD,1018398,6.97
"Department for Business, Innovation and Skills","Department for Business, Innovation and Skills",04/02/2011,Mobile Phones,Business & Skills Group - Economic Development Directorate,VODAFONE LTD,1017688,0.54
"Department for Business, Innovation and Skills","Department for Business, Innovation and Skills",04/02/2011,Mobile Phones,Business & Skills Group - Economic Development Directorate,VODAFONE LTD,1017688,6.97
"Department for Business, Innovation and Skills","Department for Business, Innovation and Skills",04/02/2011,Mobile Phones,Business & Skills Group - Economic Development Directorate,VODAFONE LTD,1017691,2.22
"Department for Business, Innovation and Skills","Department for Business, Innovation and Skills",04/02/2011,Mobile Phones,Business & Skills Group - Economic Development Directorate,VODAFONE LTD,1017691,6.97
"Department for Business, Innovation and Skills","Department for Business, Innovation and Skills",04/02/2011,Mobile Phones,Business & Skills Group - Economic Development Directorate,VODAFONE LTD,1018309,97.4
"Department for Business, Innovation and Skills","Department for Business, Innovation and Skills",04/02/2011,Mobile Phones,Business & Skills Group - Economic Development Directorate,VODAFONE LTD,1018309,6.97
"Department for Business, Innovation and Skills","Department for Business, Innovation and Skills",04/02/2011,Hire of Agency Staff (Clerical/Secretariat/Other),Business & Skills Group - Enterprise Directorate,ADECCO UK LTD,1018106,765.75
"Department for Business, Innovation and Skills","Department for Business, Innovation and Skills",04/02/2011,Hire of Agency Staff (Clerical/Secretariat/Other),Business & Skills Group - Enterprise Directorate,ADECCO UK LTD,1018108,532.46
"Department for Business, Innovation and Skills","Department for Business, Innovation and Skills",04/02/2011,Corporate Management Consultancy,Business & Skills Group - Enterprise Directorate,KEMPSHOTT RESEARCH MANAGEMENT,1018458,2242.2
"Department for Business, Innovation and Skills","Department for Business, Innovation and Skills",04/02/2011,Mobile Phones,Business & Skills Group - Enterprise Directorate,VODAFONE LTD,1018395,0.22
"Department for Business, Innovation and Skills","Department for Business, Innovation and Skills",04/02/2011,Mobile Phones,Business & Skills Group - Enterprise Directorate,VODAFONE LTD,1018395,6.97
"Department for Business, Innovation and Skills","Department for Business, Innovation and Skills",04/02/2011,Rail Fares,Business & Skills Group - Information Economy,"Personal Expense, Name Witheld.",10275524,112
"Department for Business, Innovation and Skills","Department for Business, Innovation and Skills",04/02/2011,Hotels Overseas,Business & Skills Group - Information Economy,"Personal Expense, Name Witheld.",10275524,58.48
"Department for Business, Innovation and Skills","Department for Business, Innovation and Skills",04/02/2011,Subsistence Payments Overseas,Business & Skills Group - Information Economy,"Personal Expense, Name Witheld.",10275524,27.89
"Department for Business, Innovation and Skills","Department for Business, Innovation and Skills",04/02/2011,Other Overseas Travel & Subsistence,Business & Skills Group - Information Economy,"Personal Expense, Name Witheld.",10275524,10.02
"Department for Business, Innovation and Skills","Department for Business, Innovation and Skills",04/02/2011,Mobile Phones,Business & Skills Group - Information Economy,VODAFONE LTD,1018368,6.37
"Department for Business, Innovation and Skills","Department for Business, Innovation and Skills",04/02/2011,Mobile Phones,Business & Skills Group - Information Economy,VODAFONE LTD,1018368,6.97
"Department for Business, Innovation and Skills","Department for Business, Innovation and Skills",04/02/2011,Mobile Phones,Business & Skills Group - Information Economy,VODAFONE LTD,1018372,8.73
"Department for Business, Innovation and Skills","Department for Business, Innovation and Skills",04/02/2011,Mobile Phones,Business & Skills Group - Information Economy,VODAFONE LTD,1018372,6.97
"Department for Business, Innovation and Skills","Department for Business, Innovation and Skills",04/02/2011,Mobile Phones,Business & Skills Group - Information Economy,VODAFONE LTD,1018375,3.98
"Department for Business, Innovation and Skills","Department for Business, Innovation and Skills",04/02/2011,Mobile Phones,Business & Skills Group - Information Economy,VODAFONE LTD,1018375,6.97
"Department for Business, Innovation and Skills","Department for Business, Innovation and Skills",04/02/2011,Mobile Phones,Business & Skills Group - Information Economy,VODAFONE LTD,1018377,0.28
"Department for Business, Innovation and Skills","Department for Business, Innovation and Skills",04/02/2011,Mobile Phones,Business & Skills Group - Information Economy,VODAFONE LTD,1018377,6.97
"Department for Business, Innovation and Skills","Department for Business, Innovation and Skills",04/02/2011,Mobile Phones,Business & Skills Group - Information Economy,VODAFONE LTD,1018381,1.25
"Department for Business, Innovation and Skills","Department for Business, Innovation and Skills",04/02/2011,Mobile Phones,Business & Skills Group - Information Economy,VODAFONE LTD,1018381,6.97
"Department for Business, Innovation and Skills","Department for Business, Innovation and Skills",04/02/2011,Mobile Phones,Business & Skills Group - Information Economy,VODAFONE LTD,1018384,0.22
"Department for Business, Innovation and Skills","Department for Business, Innovation and Skills",04/02/2011,Mobile Phones,Business & Skills Group - Information Economy,VODAFONE LTD,1018384,6.97
"Department for Business, Innovation and Skills","Department for Business, Innovation and Skills",04/02/2011,Mobile Phones,Business & Skills Group - Information Economy,VODAFONE LTD,1018400,0.27
"Department for Business, Innovation and Skills","Department for Business, Innovation and Skills",04/02/2011,Mobile Phones,Business & Skills Group - Information Economy,VODAFONE LTD,1018400,6.97
"Department for Business, Innovation and Skills","Department for Business, Innovation and Skills",04/02/2011,Mobile Phones,Business & Skills Group - Information Economy,VODAFONE LTD,1018401,6.11
"Department for Business, Innovation and Skills","Department for Business, Innovation and Skills",04/02/2011,Mobile Phones,Business & Skills Group - Information Economy,VODAFONE LTD,1018401,6.97
"Department for Business, Innovation and Skills","Department for Business, Innovation and Skills",04/02/2011,Hire of Agency Staff (Clerical/Secretariat/Other),Chief Economic Advisor &BRE Group - Better Regulation Executive (BRE),ADECCO UK LTD,1017502,774.72
"Department for Business, Innovation and Skills","Department for Business, Innovation and Skills",04/02/2011,Other Accommodation Charges,Chief Economic Advisor &BRE Group - IEBRE Central Support,COMPETITION COMMISSION,1018482,888.94
"Department for Business, Innovation and Skills","Department for Business, Innovation and Skills",04/02/2011,Finance Training,Finance & Commercial Group - Finance Group,NATIONAL SCHOOL OF GOVERNMENT (CMPS),1017855,925
"Department for Business, Innovation and Skills","Department for Business, Innovation and Skills",04/02/2011,Hire of Agency Staff (Clerical/Secretariat/Other),Finance & Commercial Group - Information and Workplace Strategies,BROOK STREET (UK) LTD,1018408,823.39
"Department for Business, Innovation and Skills","Department for Business, Innovation and Skills",04/02/2011,Professional Subscriptions,Finance & Commercial Group - Information and Workplace Strategies,"Personal Expense, Name Witheld.",10275532,189
"Department for Business, Innovation and Skills","Department for Business, Innovation and Skills",04/02/2011,Professional Subscriptions,Finance & Commercial Group - Information and Workplace Strategies,"Personal Expense, Name Witheld.",10275533,189
"Department for Business, Innovation and Skills","Department for Business, Innovation and Skills",04/02/2011,Professional Subscriptions,Finance & Commercial Group - Information and Workplace Strategies,"Personal Expense, Name Witheld.",10275534,189
"Department for Business, Innovation and Skills","Department for Business, Innovation and Skills",04/02/2011,Professional Subscriptions,Finance & Commercial Group - Information and Workplace Strategies,"Personal Expense, Name Witheld.",10275535,189
"Department for Business, Innovation and Skills","Department for Business, Innovation and Skills",04/02/2011,Publications,Knowledge and Innovation Group - Government Office For Science,JONES YARRELL LEADENHALL,1018321,62.92
"Department for Business, Innovation and Skills","Department for Business, Innovation and Skills",04/02/2011,Secondees (not paid directly),Knowledge and Innovation Group - Government Office For Science,DSTL,1018459,7595.36
"Department for Business, Innovation and Skills","Department for Business, Innovation and Skills",04/02/2011,Secondees (not paid directly),Knowledge and Innovation Group - Government Office For Science,DSTL,1018460,8612.99
"Department for Business, Innovation and Skills","Department for Business, Innovation and Skills",04/02/2011,Other UK Travel & Subsistence,Knowledge and Innovation Group - Government Office For Science,"Personal Expense, Name Witheld.",10275523,6.2
"Department for Business, Innovation and Skills","Department for Business, Innovation and Skills",04/02/2011,Hotels Overseas,Knowledge and Innovation Group - Government Office For Science,"Personal Expense, Name Witheld.",10275523,77.58
"Department for Business, Innovation and Skills","Department for Business, Innovation and Skills",04/02/2011,Other Overseas Travel & Subsistence,Knowledge and Innovation Group - Government Office For Science,"Personal Expense, Name Witheld.",10275523,10.01
"Department for Business, Innovation and Skills","Department for Business, Innovation and Skills",04/02/2011,Publications,Knowledge and Innovation Group - Higher Education Admin,JONES YARRELL LEADENHALL,1018429,15.44
"Department for Business, Innovation and Skills","Department for Business, Innovation and Skills",04/02/2011,Rail Fares,Knowledge and Innovation Group - Office of the Knowledge & Innovation DG,"Personal Expense, Name Witheld.",10275538,8.2
"Department for Business, Innovation and Skills","Department for Business, Innovation and Skills",04/02/2011,Subsistence Payments,Knowledge and Innovation Group - Office of the Knowledge & Innovation DG,"Personal Expense, Name Witheld.",10275538,3.98
"Department for Business, Innovation and Skills","Department for Business, Innovation and Skills",04/02/2011,Taxis Overseas,Knowledge and Innovation Group - Research Base,"Personal Expense, Name Witheld.",10275522,39
"Department for Business, Innovation and Skills","Department for Business, Innovation and Skills",04/02/2011,Hotels Overseas,Knowledge and Innovation Group - Research Base,"Personal Expense, Name Witheld.",10275522,321.48
"Department for Business, Innovation and Skills","Department for Business, Innovation and Skills",04/02/2011,Subsistence Payments Overseas,Knowledge and Innovation Group - Research Base,"Personal Expense, Name Witheld.",10275522,43.29
"Department for Business, Innovation and Skills","Department for Business, Innovation and Skills",04/02/2011,Publications,Knowledge and Innovation Group - Research Base,THE PARLIAMENTARY AND SCIENTIFIC COMMITTEE,1018382,70
"Department for Business, Innovation and Skills","Department for Business, Innovation and Skills",04/02/2011,Publications,"Legal, People & Communications Group - Communications Directorate",JONES YARRELL LEADENHALL,1018331,68.85
"Department for Business, Innovation and Skills","Department for Business, Innovation and Skills",04/02/2011,Publications,"Legal, People & Communications Group - Communications Directorate",JONES YARRELL LEADENHALL,1018454,409.18
"Department for Business, Innovation and Skills","Department for Business, Innovation and Skills",04/02/2011,Taxis,"Legal, People & Communications Group - Communications Directorate",ADDISON LEE plc,1018456,348.62
"Department for Business, Innovation and Skills","Department for Business, Innovation and Skills",04/02/2011,Hire of Agency Staff (Clerical/Secretariat/Other),"Legal, People & Communications Group - HRCM - Human Resources and Change Management Directorate",BROOK STREET (UK) LTD,1018404,423.13
"Department for Business, Innovation and Skills","Department for Business, Innovation and Skills",04/02/2011,Hire of Agency Staff (Clerical/Secretariat/Other),"Legal, People & Communications Group - HRCM - Human Resources and Change Management Directorate",BROOK STREET (UK) LTD,1018406,411.7
"Department for Business, Innovation and Skills","Department for Business, Innovation and Skills",04/02/2011,Publications,"Legal, People & Communications Group - Legal",LEXISNEXIS BUTTERWORTHS,1018327,370.1
"Department for Business, Innovation and Skills","Department for Business, Innovation and Skills",04/02/2011,Computer Consumables,Market and Frameworks Group - ECO,XMA LTD,1018330,89.98
"Department for Business, Innovation and Skills","Department for Business, Innovation and Skills",04/02/2011,Mobile Phones,Market and Frameworks Group - Fair Markets Director General's Office,VODAFONE LTD,1018276,6.18
"Department for Business, Innovation and Skills","Department for Business, Innovation and Skills",04/02/2011,Mobile Phones,Market and Frameworks Group - Fair Markets Director General's Office,VODAFONE LTD,1018276,6.97
"Department for Business, Innovation and Skills","Department for Business, Innovation and Skills",04/02/2011,Hire of Reprographic Equipment,Market and Frameworks Group - Fair Markets Director General's Office,COPIERTEC LTD,1018466,99
"Department for Business, Innovation and Skills","Department for Business, Innovation and Skills",04/02/2011,Hire of Agency Staff (Clerical/Secretariat/Other),Ministerial and Parliamentary Support Team - Ministerial and Parliamentary Support Team,ADECCO UK LTD,1018126,485.28
"Department for Business, Innovation and Skills","Department for Business, Innovation and Skills",04/02/2011,Car Hire and Leasing,Ministerial and Parliamentary Support Team - Ministerial and Parliamentary Support Team,ADDISON LEE plc,1017620,-11.6
"Department for Business, Innovation and Skills","Department for Business, Innovation and Skills",04/02/2011,Car Hire and Leasing,Ministerial and Parliamentary Support Team - Ministerial and Parliamentary Support Team,ADDISON LEE plc,1017620,-5.81
"Department for Business, Innovation and Skills","Department for Business, Innovation and Skills",04/02/2011,Hire of Agency Staff (Professional/Management),Ministerial and Parliamentary Support Team - Ministerial and Parliamentary Support Team,ADECCO UK LTD,1018126,230.62
"Department for Business, Innovation and Skills","Department for Business, Innovation and Skills",04/02/2011,Publications,Ministerial and Parliamentary Support Team - Ministerial and Parliamentary Support Team,JONES YARRELL LEADENHALL,1018449,706.28
"Department for Business, Innovation and Skills","Department for Business, Innovation and Skills",04/02/2011,Hire of Agency Staff (Clerical/Secretariat/Other),Ministerial and Parliamentary Support Team - Ministerial and Parliamentary Support Team,HAYS SPECIALIST RECRUITMENT LTD,1018434,531
"Department for Business, Innovation and Skills","Department for Business, Innovation and Skills",04/02/2011,Hire of Agency Staff (Clerical/Secretariat/Other),Ministerial and Parliamentary Support Team - Ministerial and Parliamentary Support Team,HAYS SPECIALIST RECRUITMENT LTD,1018436,424.8
"Department for Business, Innovation and Skills","Department for Business, Innovation and Skills",04/02/2011,Hire of Agency Staff (Clerical/Secretariat/Other),Ministerial and Parliamentary Support Team - Ministerial and Parliamentary Support Team,HAYS SPECIALIST RECRUITMENT LTD,1018437,460.8
"Department for Business, Innovation and Skills","Department for Business, Innovation and Skills",04/02/2011,Publications,Office of Manpower Economics - Office of Manpower Economics,JONES YARRELL LEADENHALL,1018316,94.72
"Department for Business, Innovation and Skills","Department for Business, Innovation and Skills",04/02/2011,Hire of Agency Staff (Clerical/Secretariat/Other),Shareholder Executive - Shareholder Executive,BROOK STREET (UK) LTD,1018407,1012.08
"Department for Business, Innovation and Skills","Department for Business, Innovation and Skills",04/02/2011,Hire of Agency Staff (Clerical/Secretariat/Other),Shareholder Executive - Shareholder Executive,BROOK STREET (UK) LTD,1018412,753.66
"Department for Business, Innovation and Skills","Department for Business, Innovation and Skills",04/02/2011,Entertaining UK,Shareholder Executive - Shareholder Executive,SEARCY TANSLEY & CO LTD,1018442,120
"Department for Business, Innovation and Skills","Department for Business, Innovation and Skills",04/02/2011,Professional Training,Shareholder Executive - Shareholder Executive,THE WHITEHALL AND INDUSTRY GROUP,1018477,450
"Department for Business, Innovation and Skills","Department for Business, Innovation and Skills",04/02/2011,Standard Desktop Plus Service (PFI),Finance & Commercial Group - Information and Workplace Strategies,FUJITSU SERVICES LTD,1018470,186.3
"Department for Business, Innovation and Skills","Department for Business, Innovation and Skills",04/02/2011,ICT Maintenance & Upkeep,Finance & Commercial Group - Information and Workplace Strategies,CAPGEMINI UK plc,1018201,130.95
"Department for Business, Innovation and Skills","Department for Business, Innovation and Skills",04/02/2011,Standard Desktop Plus Services,Finance & Commercial Group - Information and Workplace Strategies,CAPGEMINI UK plc,1018203,99794.64
"Department for Business, Innovation and Skills","Department for Business, Innovation and Skills",04/02/2011,Standard Desktop Plus Service (PFI),Finance & Commercial Group - Information and Workplace Strategies,FUJITSU SERVICES LTD,1018231,1973.22
"Department for Business, Innovation and Skills","Department for Business, Innovation and Skills",04/02/2011,Flexible Computing Service (PFI),Finance & Commercial Group - Information and Workplace Strategies,FUJITSU SERVICES LTD,1018353,53522.26
"Department for Business, Innovation and Skills","Department for Business, Innovation and Skills",04/02/2011,Standard Desktop Plus Service (PFI),Finance & Commercial Group - Information and Workplace Strategies,FUJITSU SERVICES LTD,1018369,44.63
"Department for Business, Innovation and Skills","Department for Business, Innovation and Skills",04/02/2011,Standard Desktop Plus Service (PFI),Finance & Commercial Group - Information and Workplace Strategies,FUJITSU SERVICES LTD,1018374,1849.26
"Department for Business, Innovation and Skills","Department for Business, Innovation and Skills",04/02/2011,Standard Desktop Plus Service (PFI),Finance & Commercial Group - Information and Workplace Strategies,FUJITSU SERVICES LTD,1018376,292.41
"Department for Business, Innovation and Skills","Department for Business, Innovation and Skills",04/02/2011,ICT Infrastructure Specific Service (PFI),Finance & Commercial Group - Information and Workplace Strategies,FUJITSU SERVICES LTD,1018378,1753.35
"Department for Business, Innovation and Skills","Department for Business, Innovation and Skills",04/02/2011,ICT Maintenance & Upkeep,Finance & Commercial Group - Information and Workplace Strategies,CAPGEMINI UK plc,1018202,1915.18
"Department for Business, Innovation and Skills","Department for Business, Innovation and Skills",04/02/2011,Maintenance,Finance & Commercial Group - Information and Workplace Strategies,BAXTERSTOREY LTD,1016690,1118
"Department for Business, Innovation and Skills","Department for Business, Innovation and Skills",04/02/2011,Utilities,Finance & Commercial Group - Information and Workplace Strategies,SIEMENS plc,1018242,227.5
"Department for Business, Innovation and Skills","Department for Business, Innovation and Skills",04/02/2011,Utilities,Finance & Commercial Group - Information and Workplace Strategies,SIEMENS plc,1018242,97.5
"Department for Business, Innovation and Skills","Department for Business, Innovation and Skills",04/02/2011,Utilities,Finance & Commercial Group - Information and Workplace Strategies,SIEMENS plc,1018242,32.5
"Department for Business, Innovation and Skills","Department for Business, Innovation and Skills",04/02/2011,Utilities,Finance & Commercial Group - Information and Workplace Strategies,SIEMENS plc,1018242,130
"Department for Business, Innovation and Skills","Department for Business, Innovation and Skills",04/02/2011,Utilities,Finance & Commercial Group - Information and Workplace Strategies,SIEMENS plc,1018242,32.5
"Department for Business, Innovation and Skills","Department for Business, Innovation and Skills",04/02/2011,Courier Services,Finance & Commercial Group - Information and Workplace Strategies,TNT INTERNATIONAL UK,1018431,59.47
"Department for Business, Innovation and Skills","Department for Business, Innovation and Skills",04/02/2011,Courier Services,Finance & Commercial Group - Information and Workplace Strategies,TNT UK LTD,1018435,82.5
"Department for Business, Innovation and Skills","Department for Business, Innovation and Skills",04/02/2011,Storage and Distribution,Finance & Commercial Group - Information and Workplace Strategies,DRAGON FIRE & SECURITY SYSTEMS LTD,1018467,30
"Department for Business, Innovation and Skills","Department for Business, Innovation and Skills",04/02/2011,Economic Consultancy and Research,Business & Skills Group - Enterprise Directorate,INSTITUTE FOR EMPLOYMENT STUDIES,1018388,4000
"Department for Business, Innovation and Skills","Department for Business, Innovation and Skills",04/02/2011,Economic Consultancy and Research,Business & Skills Group - Enterprise Directorate,INSTITUTE FOR EMPLOYMENT STUDIES,1018385,10000
"Department for Business, Innovation and Skills","Department for Business, Innovation and Skills",04/02/2011,Capital Grants - Other,Business & Skills Group - Business Competitiveness - Secretariat/GRU,SCIENCE & TECHNOLOGY FACILITIES COUNCIL,1018294,2974027.56
"Department for Business, Innovation and Skills","Department for Business, Innovation and Skills",04/02/2011,Grants - Statutory - Current - Other,Business & Skills Group - Advanced Manufacturing Industries,CENEX,1018399,13360.3
"Department for Business, Innovation and Skills","Department for Business, Innovation and Skills",04/02/2011,Capital Grants - Other,Knowledge and Innovation Group - Research Base,DEPARTMENT FOR EMPLOYMENT AND LEARNING,1018433,1293150
"Department for Business, Innovation and Skills","Department for Business, Innovation and Skills",04/02/2011,Grants - Statutory - Current - Other,Knowledge and Innovation Group - Research Base,Department of Energy & Climate Change,1018464,33000
"Department for Business, Innovation and Skills","Department for Business, Innovation and Skills",04/02/2011,Subsistence Payments (Programme),Knowledge and Innovation Group - Research Base,UNIVERSITY OF HULL,1018306,3333.13
"Department for Business, Innovation and Skills","Department for Business, Innovation and Skills",04/02/2011,Research & Development Expenditure (Programme),Knowledge and Innovation Group - Government Office For Science,ESCOTT HUNT LTD,1018370,1430
"Department for Business, Innovation and Skills","Department for Business, Innovation and Skills",04/02/2011,Research & Development Expenditure (Programme),Knowledge and Innovation Group - Government Office For Science,STAIRWAY COMMUNICATIONS LTD,1018386,360
"Department for Business, Innovation and Skills","Department for Business, Innovation and Skills",04/02/2011,Hire of Agency Staff (NDPB use only),Shareholder Executive - Shareholder Executive,BROOK STREET (UK) LTD,1018371,372.06
"Department for Business, Innovation and Skills","Department for Business, Innovation and Skills",04/02/2011,Grant in Aid - Current -Other,Business & Skills Group - Skills Directorate,UK COMMISSION FOR EMPLOYMENT AND SKILLS (UKCES),1018409,4978000
"Department for Business, Innovation and Skills","Department for Business, Innovation and Skills",04/02/2011,Grants - Non Statutory - Current - Other,Business & Skills Group - Further Education,PRISONERS EDUCATION TRUST,1018475,11615
"Department for Business, Innovation and Skills","Department for Business, Innovation and Skills",04/02/2011,Grants - Non Statutory - Current - Other,Business & Skills Group - Further Education,PRISONERS EDUCATION TRUST,1018475,48076
"Department for Business, Innovation and Skills","Department for Business, Innovation and Skills",04/02/2011,Grants - Non Statutory - Current - Other,Business & Skills Group - Further Education,PRISONERS EDUCATION TRUST,1018475,31326
"Department for Business, Innovation and Skills","Department for Business, Innovation and Skills",04/02/2011,Mileage Allowances (Programme),Business & Skills Group - Government Skills,"Personal Expense, Name Witheld.",10275536,230.4
"Department for Business, Innovation and Skills","Department for Business, Innovation and Skills",04/02/2011,Subsistence Payments (Programme),Business & Skills Group - Government Skills,"Personal Expense, Name Witheld.",10275536,102.76
"Department for Business, Innovation and Skills","Department for Business, Innovation and Skills",04/02/2011,Others UK T&S (Programme),Business & Skills Group - Government Skills,"Personal Expense, Name Witheld.",10275536,107
"Department for Business, Innovation and Skills","Department for Business, Innovation and Skills",04/02/2011,Mileage Allowances (Programme),Business & Skills Group - Government Skills,"Personal Expense, Name Witheld.",10275537,230.4
"Department for Business, Innovation and Skills","Department for Business, Innovation and Skills",04/02/2011,Subsistence Payments (Programme),Business & Skills Group - Government Skills,"Personal Expense, Name Witheld.",10275537,110.95
"Department for Business, Innovation and Skills","Department for Business, Innovation and Skills",04/02/2011,Others UK T&S (Programme),Business & Skills Group - Government Skills,"Personal Expense, Name Witheld.",10275537,107
"Department for Business, Innovation and Skills","Department for Business, Innovation and Skills",07/02/2011,Computer Equipment - Clearing,Finance & Commercial Group - Information and Workplace Strategies,METHODS CONSULTING LTD,1018272,19680
"Department for Business, Innovation and Skills","Department for Business, Innovation and Skills",07/02/2011,Grants - Statutory - Current - Other,Knowledge and Innovation Group - UK Space Agency,CALLINGTON COMMUNITY COLLEGE,1018544,1100
"Department for Business, Innovation and Skills","Department for Business, Innovation and Skills",07/02/2011,Capital Grants - Other,Business & Skills Group - Economic Development Directorate,YORKSHIRE FORWARD,1018506,488358
"Department for Business, Innovation and Skills","Department for Business, Innovation and Skills",07/02/2011,Criminal Law and Prosecution Work,"Legal, People & Communications Group - Legal",MORECROFTS LLP,1018510,386.14
"Department for Business, Innovation and Skills","Department for Business, Innovation and Skills",07/02/2011,Criminal Law and Prosecution Work,"Legal, People & Communications Group - Legal",FABER & CO,1018512,167.32
"Department for Business, Innovation and Skills","Department for Business, Innovation and Skills",07/02/2011,Criminal Law and Prosecution Work,"Legal, People & Communications Group - Legal",MORECROFTS LLP,1018510,200
"Department for Business, Innovation and Skills","Department for Business, Innovation and Skills",07/02/2011,Criminal Law and Prosecution Work,"Legal, People & Communications Group - Legal",HM LAND REGISTRY,1018579,50
"Department for Business, Innovation and Skills","Department for Business, Innovation and Skills",07/02/2011,Hire of Conference Facilities (Programme),Knowledge and Innovation Group - Innovation,ST JOHNS INNOVATION CENTRE LTD,1018461,555.5
"Department for Business, Innovation and Skills","Department for Business, Innovation and Skills",07/02/2011,Economic Consultancy and Research,Business & Skills Group - Enterprise Directorate,BDRC CONTINENTAL LTD,1018546,16250
"Department for Business, Innovation and Skills","Department for Business, Innovation and Skills",07/02/2011,Hotels- Overseas  (Programme),Knowledge and Innovation Group - Innovation,"Personal Expense, Name Witheld.",10275552,86.2
"Department for Business, Innovation and Skills","Department for Business, Innovation and Skills",07/02/2011,Subsistence Payments- Overseas (Programme),Knowledge and Innovation Group - Innovation,"Personal Expense, Name Witheld.",10275552,65.93
"Department for Business, Innovation and Skills","Department for Business, Innovation and Skills",07/02/2011,Other Overseas T&S (Programme),Knowledge and Innovation Group - Innovation,"Personal Expense, Name Witheld.",10275552,10.03
"Department for Business, Innovation and Skills","Department for Business, Innovation and Skills",07/02/2011,Rail Fares,Business & Skills Group - Economic Development Directorate,"Personal Expense, Name Witheld.",10275550,9
"Department for Business, Innovation and Skills","Department for Business, Innovation and Skills",07/02/2011,Hotels Overseas,Business & Skills Group - Economic Development Directorate,"Personal Expense, Name Witheld.",10275550,57.08
"Department for Business, Innovation and Skills","Department for Business, Innovation and Skills",07/02/2011,Subsistence Payments Overseas,Business & Skills Group - Economic Development Directorate,"Personal Expense, Name Witheld.",10275550,5
"Department for Business, Innovation and Skills","Department for Business, Innovation and Skills",07/02/2011,Other Overseas Travel & Subsistence,Business & Skills Group - Economic Development Directorate,"Personal Expense, Name Witheld.",10275550,10
"Department for Business, Innovation and Skills","Department for Business, Innovation and Skills",07/02/2011,Mileage Allowances,Business & Skills Group - Economic Development Directorate,"Personal Expense, Name Witheld.",10275560,121.6
"Department for Business, Innovation and Skills","Department for Business, Innovation and Skills",07/02/2011,Professional Training,Business & Skills Group - Enterprise Directorate,AMADEUS SOFTWARE LTD,1018547,930
"Department for Business, Innovation and Skills","Department for Business, Innovation and Skills",07/02/2011,Professional Training,Business & Skills Group - Enterprise Directorate,AMADEUS SOFTWARE LTD,1018547,930
"Department for Business, Innovation and Skills","Department for Business, Innovation and Skills",07/02/2011,Professional Training,Business & Skills Group - Enterprise Directorate,AMADEUS SOFTWARE LTD,1018549,930
"Department for Business, Innovation and Skills","Department for Business, Innovation and Skills",07/02/2011,Professional Training,Business & Skills Group - Enterprise Directorate,AMADEUS SOFTWARE LTD,1018551,697.5
"Department for Business, Innovation and Skills","Department for Business, Innovation and Skills",07/02/2011,Hotels Overseas,Business & Skills Group - Information Economy,"Personal Expense, Name Witheld.",10275553,512.35
"Department for Business, Innovation and Skills","Department for Business, Innovation and Skills",07/02/2011,Subsistence Payments Overseas,Business & Skills Group - Information Economy,"Personal Expense, Name Witheld.",10275553,50
"Department for Business, Innovation and Skills","Department for Business, Innovation and Skills",07/02/2011,Professional Subscriptions,Finance & Commercial Group - Information and Workplace Strategies,"Personal Expense, Name Witheld.",10275559,189
"Department for Business, Innovation and Skills","Department for Business, Innovation and Skills",07/02/2011,Rail Fares,Finance & Commercial Group - Information and Workplace Strategies,"Personal Expense, Name Witheld.",10275569,52.2
"Department for Business, Innovation and Skills","Department for Business, Innovation and Skills",07/02/2011,Professional Subscriptions,Finance & Commercial Group - Information and Workplace Strategies,"Personal Expense, Name Witheld.",10275570,189
"Department for Business, Innovation and Skills","Department for Business, Innovation and Skills",07/02/2011,Publications,Knowledge and Innovation Group - Innovation,BT CONFERENCING,1018444,12.16
"Department for Business, Innovation and Skills","Department for Business, Innovation and Skills",07/02/2011,Staff Transfer/Detached Duty Costs,Knowledge and Innovation Group - Innovation,"Personal Expense, Name Witheld.",10275548,546.66
"Department for Business, Innovation and Skills","Department for Business, Innovation and Skills",07/02/2011,Mileage Allowances,Knowledge and Innovation Group - Research Base,"Personal Expense, Name Witheld.",10275561,38.8
"Department for Business, Innovation and Skills","Department for Business, Innovation and Skills",07/02/2011,Rail Fares,Knowledge and Innovation Group - UK Space Agency,"Personal Expense, Name Witheld.",10275571,9.8
"Department for Business, Innovation and Skills","Department for Business, Innovation and Skills",07/02/2011,Rail Fares Overseas,Knowledge and Innovation Group - UK Space Agency,"Personal Expense, Name Witheld.",10275571,2.92
"Department for Business, Innovation and Skills","Department for Business, Innovation and Skills",07/02/2011,Hotels Overseas,Knowledge and Innovation Group - UK Space Agency,"Personal Expense, Name Witheld.",10275571,134.03
"Department for Business, Innovation and Skills","Department for Business, Innovation and Skills",07/02/2011,Subsistence Payments Overseas,Knowledge and Innovation Group - UK Space Agency,"Personal Expense, Name Witheld.",10275571,8.74
"Department for Business, Innovation and Skills","Department for Business, Innovation and Skills",07/02/2011,Other Overseas Travel & Subsistence,Knowledge and Innovation Group - UK Space Agency,"Personal Expense, Name Witheld.",10275571,14.5
"Department for Business, Innovation and Skills","Department for Business, Innovation and Skills",07/02/2011,Public Relations - Other Expenditure,"Legal, People & Communications Group - Communications Directorate",JAMIE O COMMS LTD,1018504,1300
"Department for Business, Innovation and Skills","Department for Business, Innovation and Skills",07/02/2011,Static Line Rental,"Legal, People & Communications Group - Communications Directorate",BRITISH TELECOMMUNICATIONS plc (BT),1018483,124.62
"Department for Business, Innovation and Skills","Department for Business, Innovation and Skills",07/02/2011,Static Line Rental,"Legal, People & Communications Group - Communications Directorate",BRITISH TELECOMMUNICATIONS plc (BT),1018483,-3.82
"Department for Business, Innovation and Skills","Department for Business, Innovation and Skills",07/02/2011,Hire of Agency Staff (Clerical/Secretariat/Other),"Legal, People & Communications Group - HRCM - Human Resources and Change Management Directorate",ADECCO UK LTD,1018104,282.75
"Department for Business, Innovation and Skills","Department for Business, Innovation and Skills",07/02/2011,Hire of Agency Staff (Clerical/Secretariat/Other),"Legal, People & Communications Group - HRCM - Human Resources and Change Management Directorate",ADECCO UK LTD,1018501,277.72
"Department for Business, Innovation and Skills","Department for Business, Innovation and Skills",07/02/2011,Accelerated Development Programme/Fast Stream Training,"Legal, People & Communications Group - HRCM - Human Resources and Change Management Directorate","Personal Expense, Name Witheld.",10275558,281.25
"Department for Business, Innovation and Skills","Department for Business, Innovation and Skills",07/02/2011,Rail Fares,"Legal, People & Communications Group - Legal","Personal Expense, Name Witheld.",10275562,147.95
"Department for Business, Innovation and Skills","Department for Business, Innovation and Skills",07/02/2011,Other Overseas Travel & Subsistence,Market and Frameworks Group - Europe and World Trade Directorates,FOREIGN AND COMMONWEALTH OFFICE (FCO),1015861,801.25
"Department for Business, Innovation and Skills","Department for Business, Innovation and Skills",07/02/2011,Rail Fares,Market and Frameworks Group - Europe and World Trade Directorates,"Personal Expense, Name Witheld.",10275551,14.6
"Department for Business, Innovation and Skills","Department for Business, Innovation and Skills",07/02/2011,Rail Fares Overseas,Market and Frameworks Group - Europe and World Trade Directorates,"Personal Expense, Name Witheld.",10275551,6.95
"Department for Business, Innovation and Skills","Department for Business, Innovation and Skills",07/02/2011,Subsistence Payments Overseas,Market and Frameworks Group - Europe and World Trade Directorates,"Personal Expense, Name Witheld.",10275551,34.12
"Department for Business, Innovation and Skills","Department for Business, Innovation and Skills",07/02/2011,Publications,Ministerial and Parliamentary Support Team - Ministerial and Parliamentary Support Team,THE STATIONERY OFFICE LTD,1018478,390
"Department for Business, Innovation and Skills","Department for Business, Innovation and Skills",07/02/2011,Taxis Overseas,Ministerial and Parliamentary Support Team - Ministerial and Parliamentary Support Team,FOREIGN AND COMMONWEALTH OFFICE (FCO),1015922,84.1
"Department for Business, Innovation and Skills","Department for Business, Innovation and Skills",07/02/2011,Car Hire and Leasing,Ministerial and Parliamentary Support Team - Ministerial and Parliamentary Support Team,GOVERNMENT CAR AND DESPATCH AGENCY,1018524,120
"Department for Business, Innovation and Skills","Department for Business, Innovation and Skills",07/02/2011,Car Hire and Leasing,Ministerial and Parliamentary Support Team - Ministerial and Parliamentary Support Team,GOVERNMENT CAR AND DESPATCH AGENCY,1018526,135
"Department for Business, Innovation and Skills","Department for Business, Innovation and Skills",07/02/2011,Car Hire and Leasing,Ministerial and Parliamentary Support Team - Ministerial and Parliamentary Support Team,GOVERNMENT CAR AND DESPATCH AGENCY,1018527,195
"Department for Business, Innovation and Skills","Department for Business, Innovation and Skills",07/02/2011,Car Hire and Leasing,Ministerial and Parliamentary Support Team - Ministerial and Parliamentary Support Team,GOVERNMENT CAR AND DESPATCH AGENCY,1018414,240
"Department for Business, Innovation and Skills","Department for Business, Innovation and Skills",07/02/2011,Car Hire and Leasing,Ministerial and Parliamentary Support Team - Ministerial and Parliamentary Support Team,GOVERNMENT CAR AND DESPATCH AGENCY,1018569,555
"Department for Business, Innovation and Skills","Department for Business, Innovation and Skills",07/02/2011,Car Hire and Leasing,Ministerial and Parliamentary Support Team - Ministerial and Parliamentary Support Team,GOVERNMENT CAR AND DESPATCH AGENCY,1018571,360
"Department for Business, Innovation and Skills","Department for Business, Innovation and Skills",07/02/2011,Car Hire and Leasing,Ministerial and Parliamentary Support Team - Ministerial and Parliamentary Support Team,GOVERNMENT CAR AND DESPATCH AGENCY,1018580,195
"Department for Business, Innovation and Skills","Department for Business, Innovation and Skills",07/02/2011,Car Hire and Leasing,Ministerial and Parliamentary Support Team - Ministerial and Parliamentary Support Team,GOVERNMENT CAR AND DESPATCH AGENCY,1018572,158.01
"Department for Business, Innovation and Skills","Department for Business, Innovation and Skills",07/02/2011,Car Hire and Leasing,Ministerial and Parliamentary Support Team - Ministerial and Parliamentary Support Team,GOVERNMENT CAR AND DESPATCH AGENCY,1018575,540
"Department for Business, Innovation and Skills","Department for Business, Innovation and Skills",07/02/2011,Car Hire and Leasing,Ministerial and Parliamentary Support Team - Ministerial and Parliamentary Support Team,GOVERNMENT CAR AND DESPATCH AGENCY,1018521,134.8
"Department for Business, Innovation and Skills","Department for Business, Innovation and Skills",07/02/2011,Car Hire and Leasing,Ministerial and Parliamentary Support Team - Ministerial and Parliamentary Support Team,GOVERNMENT CAR AND DESPATCH AGENCY,1018523,345
"Department for Business, Innovation and Skills","Department for Business, Innovation and Skills",07/02/2011,Other Overseas Travel & Subsistence,Ministerial and Parliamentary Support Team - Ministerial and Parliamentary Support Team,FOREIGN AND COMMONWEALTH OFFICE (FCO),1015858,562.86
"Department for Business, Innovation and Skills","Department for Business, Innovation and Skills",07/02/2011,Car Hire and Leasing,Ministerial and Parliamentary Support Team - Ministerial and Parliamentary Support Team,GOVERNMENT CAR AND DESPATCH AGENCY,1018522,435
"Department for Business, Innovation and Skills","Department for Business, Innovation and Skills",07/02/2011,Hire of Agency Staff (Professional/Management),Ministerial and Parliamentary Support Team - Ministerial and Parliamentary Support Team,THE LONDON APPRENTICESHIP COMPANY,1018577,633.36
"Department for Business, Innovation and Skills","Department for Business, Innovation and Skills",07/02/2011,Standard Desktop Plus Service (PFI),Finance & Commercial Group - Information and Workplace Strategies,FUJITSU SERVICES LTD,1018358,66672.3
"Department for Business, Innovation and Skills","Department for Business, Innovation and Skills",07/02/2011,Standard Desktop Services (PFI),Finance & Commercial Group - Information and Workplace Strategies,FUJITSU SERVICES LTD,1018500,2774.24
"Department for Business, Innovation and Skills","Department for Business, Innovation and Skills",07/02/2011,ICT Maintenance & Upkeep,Finance & Commercial Group - Information and Workplace Strategies,THE CLOUD NETWORKS LTD,1018495,104.88
"Department for Business, Innovation and Skills","Department for Business, Innovation and Skills",07/02/2011,ICT Maintenance & Upkeep,Finance & Commercial Group - Information and Workplace Strategies,THE CLOUD NETWORKS LTD,1018495,112.24
"Department for Business, Innovation and Skills","Department for Business, Innovation and Skills",07/02/2011,ICT Maintenance & Upkeep,Finance & Commercial Group - Information and Workplace Strategies,RUSSAM GMS LTD,1018499,2756.25
"Department for Business, Innovation and Skills","Department for Business, Innovation and Skills",07/02/2011,Catering Services,Finance & Commercial Group - Information and Workplace Strategies,BAXTERSTOREY LTD,1018505,43891.41
"Department for Business, Innovation and Skills","Department for Business, Innovation and Skills",07/02/2011,InfoSource Desktop Information and Research Services,Finance & Commercial Group - Information and Workplace Strategies,THE STATIONERY OFFICE LTD,1018542,89.25
"Department for Business, Innovation and Skills","Department for Business, Innovation and Skills",07/02/2011,Special Adjustments,"Legal, People & Communications Group - HRCM - Human Resources and Change Management Directorate",GREATER LONDON HIRE LTD,1017904,160.02
"Department for Business, Innovation and Skills","Department for Business, Innovation and Skills",07/02/2011,Other Overseas Travel & Subsistence,"Legal, People & Communications Group - HRCM - Human Resources and Change Management Directorate",FOREIGN AND COMMONWEALTH OFFICE (FCO),1015846,87.2
"Department for Business, Innovation and Skills","Department for Business, Innovation and Skills",07/02/2011,Other Overseas Travel & Subsistence,"Legal, People & Communications Group - HRCM - Human Resources and Change Management Directorate",FOREIGN AND COMMONWEALTH OFFICE (FCO),1015845,1395.19
"Department for Business, Innovation and Skills","Department for Business, Innovation and Skills",07/02/2011,Other Overseas Travel & Subsistence,"Legal, People & Communications Group - HRCM - Human Resources and Change Management Directorate",FOREIGN AND COMMONWEALTH OFFICE (FCO),1015848,36.5
"Department for Business, Innovation and Skills","Department for Business, Innovation and Skills",07/02/2011,Other Overseas Travel & Subsistence,"Legal, People & Communications Group - HRCM - Human Resources and Change Management Directorate",FOREIGN AND COMMONWEALTH OFFICE (FCO),1015849,1559.08
"Department for Business, Innovation and Skills","Department for Business, Innovation and Skills",07/02/2011,Other Overseas Travel & Subsistence,"Legal, People & Communications Group - HRCM - Human Resources and Change Management Directorate",FOREIGN AND COMMONWEALTH OFFICE (FCO),1015851,1559.08
"Department for Business, Innovation and Skills","Department for Business, Innovation and Skills",07/02/2011,Other Overseas Travel & Subsistence,"Legal, People & Communications Group - HRCM - Human Resources and Change Management Directorate",FOREIGN AND COMMONWEALTH OFFICE (FCO),1015856,1559.08
"Department for Business, Innovation and Skills","Department for Business, Innovation and Skills",07/02/2011,Other Overseas Travel & Subsistence,"Legal, People & Communications Group - HRCM - Human Resources and Change Management Directorate",FOREIGN AND COMMONWEALTH OFFICE (FCO),1015919,356.91
"Department for Business, Innovation and Skills","Department for Business, Innovation and Skills",07/02/2011,Economic Consultancy and Research,Business & Skills Group - Enterprise Directorate,ASTON UNIVERSITY,1018545,11667
"Department for Business, Innovation and Skills","Department for Business, Innovation and Skills",07/02/2011,Business Management Advice,Market and Frameworks Group - Europe Directorate,THE NATIONAL COMPUTING CENTRE,1018519,3799.22
"Department for Business, Innovation and Skills","Department for Business, Innovation and Skills",07/02/2011,Capital Grants - Other,Business & Skills Group - Advanced Manufacturing Industries,INNOVITS (UK CENTRE OF EXCELLENCE FOR TRANSPORT TELEMATICS AND SUSTAINABLE MOBILTY),1018485,400785
"Department for Business, Innovation and Skills","Department for Business, Innovation and Skills",07/02/2011,Purchase of Completed Research,Business & Skills Group - Life Sciences,THOMSON REUTERS (PROFESSIONAL) UK LTD T/A SWEET & MAXWELL,1018503,6000
"Department for Business, Innovation and Skills","Department for Business, Innovation and Skills",07/02/2011,Grant in Aid - Current -Other,Knowledge and Innovation Group - Research Base,NATURAL ENVIRONMENT RESEARCH COUNCIL (BGS BRITISH GEOLOGICAL SURVEY),1018528,45000000
"Department for Business, Innovation and Skills","Department for Business, Innovation and Skills",07/02/2011,Grant in Aid - Current -Other,Knowledge and Innovation Group - Research Base,ENGINEERING AND PHYSICAL SCIENCES RESEARCH COUNCIL,1018532,6000000
"Department for Business, Innovation and Skills","Department for Business, Innovation and Skills",07/02/2011,Grant in Aid - Current -Other,Knowledge and Innovation Group - Research Base,BIOTECHNOLOGY AND BIOLOGICAL SCIENCE RESEARCH COUNCIL,1018535,36125000
"Department for Business, Innovation and Skills","Department for Business, Innovation and Skills",07/02/2011,Grant in Aid - Current -Other,Knowledge and Innovation Group - Research Base,ECONOMIC AND SOCIAL RESEARCH COUNCIL ESRC,1018531,8000000
"Department for Business, Innovation and Skills","Department for Business, Innovation and Skills",07/02/2011,Grants - Statutory - Current - Other,Knowledge and Innovation Group - Research Base,BIOTECHNOLOGY AND BIOLOGICAL SCIENCE RESEARCH COUNCIL,1018533,2700000
"Department for Business, Innovation and Skills","Department for Business, Innovation and Skills",07/02/2011,Grant in Aid - Current -Other,Knowledge and Innovation Group - Research Base,ARTS AND HUMANITIES RESEARCH COUNCIL,1018538,6482000
"Department for Business, Innovation and Skills","Department for Business, Innovation and Skills",07/02/2011,Grant in Aid - Current -Other,Knowledge and Innovation Group - Research Base,SCIENCE AND TECHNOLOGY FACILITIES COUNCIL,1018529,48623500
"Department for Business, Innovation and Skills","Department for Business, Innovation and Skills",07/02/2011,Research & Development Expenditure (Programme),Knowledge and Innovation Group - Government Office For Science,UNIVERSITY OF DUNDEE,1018279,4500
"Department for Business, Innovation and Skills","Department for Business, Innovation and Skills",07/02/2011,Research & Development Expenditure (Programme),Knowledge and Innovation Group - Government Office For Science,OUTSIGHTS LTD,1018484,29961.04
"Department for Business, Innovation and Skills","Department for Business, Innovation and Skills",07/02/2011,Research & Development Expenditure (Programme),Knowledge and Innovation Group - Government Office For Science,OUTSIGHTS LTD,1018484,594.51
"Department for Business, Innovation and Skills","Department for Business, Innovation and Skills",07/02/2011,Research & Development Expenditure (Programme),Knowledge and Innovation Group - Government Office For Science,SUE HILL RECRUITMENT & SERVICES LTD,1018520,4496.8
"Department for Business, Innovation and Skills","Department for Business, Innovation and Skills",07/02/2011,Rail Fares (Programme),Knowledge and Innovation Group - Research Base,FOREIGN AND COMMONWEALTH OFFICE (FCO),1015875,24.26
"Department for Business, Innovation and Skills","Department for Business, Innovation and Skills",07/02/2011,Air Fares  - Overseas (Programme),Knowledge and Innovation Group - Research Base,FOREIGN AND COMMONWEALTH OFFICE (FCO),1015876,309.15
"Department for Business, Innovation and Skills","Department for Business, Innovation and Skills",07/02/2011,Entertaining Overseas (Programme),Knowledge and Innovation Group - Research Base,FOREIGN AND COMMONWEALTH OFFICE (FCO),1015877,963.84
"Department for Business, Innovation and Skills","Department for Business, Innovation and Skills",07/02/2011,Air Fares  - Overseas (Programme),Knowledge and Innovation Group - Research Base,FOREIGN AND COMMONWEALTH OFFICE (FCO),1015878,676.49
"Department for Business, Innovation and Skills","Department for Business, Innovation and Skills",07/02/2011,Entertaining Overseas (Programme),Knowledge and Innovation Group - Research Base,FOREIGN AND COMMONWEALTH OFFICE (FCO),1015879,735.4
"Department for Business, Innovation and Skills","Department for Business, Innovation and Skills",07/02/2011,Entertaining Overseas (Programme),Knowledge and Innovation Group - Research Base,FOREIGN AND COMMONWEALTH OFFICE (FCO),1015881,137.93
"Department for Business, Innovation and Skills","Department for Business, Innovation and Skills",07/02/2011,Air Fares  - Overseas (Programme),Knowledge and Innovation Group - Research Base,FOREIGN AND COMMONWEALTH OFFICE (FCO),1015882,1214.76
"Department for Business, Innovation and Skills","Department for Business, Innovation and Skills",07/02/2011,Air Fares  - Overseas (Programme),Knowledge and Innovation Group - Research Base,FOREIGN AND COMMONWEALTH OFFICE (FCO),1015883,1214.76
"Department for Business, Innovation and Skills","Department for Business, Innovation and Skills",07/02/2011,Air Fares  - Overseas (Programme),Knowledge and Innovation Group - Research Base,FOREIGN AND COMMONWEALTH OFFICE (FCO),1015885,1272.61
"Department for Business, Innovation and Skills","Department for Business, Innovation and Skills",07/02/2011,Air Fares  - Overseas (Programme),Knowledge and Innovation Group - Research Base,FOREIGN AND COMMONWEALTH OFFICE (FCO),1015886,1272.61
"Department for Business, Innovation and Skills","Department for Business, Innovation and Skills",07/02/2011,Air Fares  - Overseas (Programme),Knowledge and Innovation Group - Research Base,FOREIGN AND COMMONWEALTH OFFICE (FCO),1015888,1214.76
"Department for Business, Innovation and Skills","Department for Business, Innovation and Skills",07/02/2011,Others UK T&S (Programme),Knowledge and Innovation Group - Research Base,FOREIGN AND COMMONWEALTH OFFICE (FCO),1015889,54.47
"Department for Business, Innovation and Skills","Department for Business, Innovation and Skills",07/02/2011,Air Fares  - Overseas (Programme),Knowledge and Innovation Group - Research Base,FOREIGN AND COMMONWEALTH OFFICE (FCO),1015891,73.39
"Department for Business, Innovation and Skills","Department for Business, Innovation and Skills",07/02/2011,Others UK T&S (Programme),Knowledge and Innovation Group - Research Base,FOREIGN AND COMMONWEALTH OFFICE (FCO),1015892,17.91
"Department for Business, Innovation and Skills","Department for Business, Innovation and Skills",07/02/2011,Air Fares  - Overseas (Programme),Knowledge and Innovation Group - Research Base,FOREIGN AND COMMONWEALTH OFFICE (FCO),1015894,287.92
"Department for Business, Innovation and Skills","Department for Business, Innovation and Skills",07/02/2011,Others UK T&S (Programme),Knowledge and Innovation Group - Research Base,FOREIGN AND COMMONWEALTH OFFICE (FCO),1015895,102.83
"Department for Business, Innovation and Skills","Department for Business, Innovation and Skills",07/02/2011,Air Fares  - Overseas (Programme),Knowledge and Innovation Group - Research Base,FOREIGN AND COMMONWEALTH OFFICE (FCO),1015898,473.01
"Department for Business, Innovation and Skills","Department for Business, Innovation and Skills",07/02/2011,Air Fares  - Overseas (Programme),Knowledge and Innovation Group - Research Base,FOREIGN AND COMMONWEALTH OFFICE (FCO),1015901,226.22
"Department for Business, Innovation and Skills","Department for Business, Innovation and Skills",07/02/2011,Air Fares  - Overseas (Programme),Knowledge and Innovation Group - Research Base,FOREIGN AND COMMONWEALTH OFFICE (FCO),1015910,245.85
"Department for Business, Innovation and Skills","Department for Business, Innovation and Skills",07/02/2011,Air Fares  - Overseas (Programme),Knowledge and Innovation Group - Research Base,FOREIGN AND COMMONWEALTH OFFICE (FCO),1015912,397.81
"Department for Business, Innovation and Skills","Department for Business, Innovation and Skills",07/02/2011,Air Fares  - Overseas (Programme),Knowledge and Innovation Group - Research Base,FOREIGN AND COMMONWEALTH OFFICE (FCO),1015913,464
"Department for Business, Innovation and Skills","Department for Business, Innovation and Skills",07/02/2011,Rail Fares (Programme),Knowledge and Innovation Group - Research Base,FOREIGN AND COMMONWEALTH OFFICE (FCO),1015915,32.82
"Department for Business, Innovation and Skills","Department for Business, Innovation and Skills",07/02/2011,Air Fares  - Overseas (Programme),Knowledge and Innovation Group - Research Base,FOREIGN AND COMMONWEALTH OFFICE (FCO),1015915,75.92
"Department for Business, Innovation and Skills","Department for Business, Innovation and Skills",07/02/2011,Air Fares  - Overseas (Programme),Knowledge and Innovation Group - Research Base,FOREIGN AND COMMONWEALTH OFFICE (FCO),1015915,258.17
"Department for Business, Innovation and Skills","Department for Business, Innovation and Skills",07/02/2011,Air Fares  - Overseas (Programme),Knowledge and Innovation Group - Research Base,FOREIGN AND COMMONWEALTH OFFICE (FCO),1015916,582.22
"Department for Business, Innovation and Skills","Department for Business, Innovation and Skills",07/02/2011,Air Fares  - Overseas (Programme),Knowledge and Innovation Group - Research Base,FOREIGN AND COMMONWEALTH OFFICE (FCO),1015917,260.43
"Department for Business, Innovation and Skills","Department for Business, Innovation and Skills",07/02/2011,Air Fares  - Overseas (Programme),Knowledge and Innovation Group - Research Base,"Personal Expense, Name Witheld.",10275544,779.21
"Department for Business, Innovation and Skills","Department for Business, Innovation and Skills",07/02/2011,Air Fares  - Overseas (Programme),Knowledge and Innovation Group - Research Base,"Personal Expense, Name Witheld.",10275545,1000
"Department for Business, Innovation and Skills","Department for Business, Innovation and Skills",07/02/2011,Air Fares  - Overseas (Programme),Knowledge and Innovation Group - Research Base,"Personal Expense, Name Witheld.",10275546,1781.9
"Department for Business, Innovation and Skills","Department for Business, Innovation and Skills",07/02/2011,Air Fares  - Overseas (Programme),Knowledge and Innovation Group - Research Base,"Personal Expense, Name Witheld.",10275547,391.1
"Department for Business, Innovation and Skills","Department for Business, Innovation and Skills",07/02/2011,Hotels- Overseas  (Programme),Knowledge and Innovation Group - Research Base,"Personal Expense, Name Witheld.",10275547,265.5
"Department for Business, Innovation and Skills","Department for Business, Innovation and Skills",07/02/2011,Subsistence Payments- Overseas (Programme),Knowledge and Innovation Group - Research Base,"Personal Expense, Name Witheld.",10275547,350
"Department for Business, Innovation and Skills","Department for Business, Innovation and Skills",07/02/2011,International Subscriptions,Business & Skills Group - Information Economy,ROYAL MAIL GROUP plc,1018489,132049.26
"Department for Business, Innovation and Skills","Department for Business, Innovation and Skills",07/02/2011,Rail Fares (Programme),Business & Skills Group - Government Skills,"Personal Expense, Name Witheld.",10275567,16.9
"Department for Business, Innovation and Skills","Department for Business, Innovation and Skills",07/02/2011,Taxis (Programme),Business & Skills Group - Government Skills,"Personal Expense, Name Witheld.",10275567,20
"Department for Business, Innovation and Skills","Department for Business, Innovation and Skills",07/02/2011,Subsistence Payments (Programme),Business & Skills Group - Government Skills,"Personal Expense, Name Witheld.",10275567,40
"Department for Business, Innovation and Skills","Department for Business, Innovation and Skills",07/02/2011,Others UK T&S (Programme),Business & Skills Group - Government Skills,"Personal Expense, Name Witheld.",10275567,2.6
"Department for Business, Innovation and Skills","Department for Business, Innovation and Skills",07/02/2011,Rail Fares (Programme),Business & Skills Group - Government Skills,"Personal Expense, Name Witheld.",10275568,16.9
"Department for Business, Innovation and Skills","Department for Business, Innovation and Skills",07/02/2011,Taxis (Programme),Business & Skills Group - Government Skills,"Personal Expense, Name Witheld.",10275568,21.5
"Department for Business, Innovation and Skills","Department for Business, Innovation and Skills",07/02/2011,Subsistence Payments (Programme),Business & Skills Group - Government Skills,"Personal Expense, Name Witheld.",10275568,36.3
"Department for Business, Innovation and Skills","Department for Business, Innovation and Skills",07/02/2011,Capital Grants - Other,Business & Skills Group - Further Education,HIGHER EDUCATION FUNDING COUNCIL FOR ENGLAND,1018502,595000
"Department for Business, Innovation and Skills","Department for Business, Innovation and Skills",08/02/2011,Payments to Expotel for Hotel Costs Contract,Finance & Commercial Group - Finance Group,EXPOTEL HOTEL RESERVATIONS LTD,1018650,12069.1
"Department for Business, Innovation and Skills","Department for Business, Innovation and Skills",08/02/2011,Payments to Expotel for Hotel Costs Contract,Finance & Commercial Group - Finance Group,EXPOTEL HOTEL RESERVATIONS LTD,1018650,673.3
"Department for Business, Innovation and Skills","Department for Business, Innovation and Skills",08/02/2011,Computer Equipment - Clearing,Finance & Commercial Group - Information and Workplace Strategies,PARITY RESOURCES LTD,1018599,11949.6
"Department for Business, Innovation and Skills","Department for Business, Innovation and Skills",08/02/2011,Grants - Non Statutory - Current - Other,Market and Frameworks Group - Consumer and Competition Policy,NORTH YORKSHIRE COUNTY COUNCIL,1018591,6726.91
"Department for Business, Innovation and Skills","Department for Business, Innovation and Skills",08/02/2011,Grants - Non Statutory - Current - Other,Business & Skills Group - Further Education,INSTITUTE FOR LEARNING (PCET),1018731,25815
"Department for Business, Innovation and Skills","Department for Business, Innovation and Skills",08/02/2011,Outsourced Programme Management Services,Knowledge and Innovation Group - Innovation,FUJITSU SERVICES LTD,1014337,5731
"Department for Business, Innovation and Skills","Department for Business, Innovation and Skills",08/02/2011,Outsourced Programme Management Services,Knowledge and Innovation Group - Innovation,FUJITSU SERVICES LTD,1018262,9745.4
"Department for Business, Innovation and Skills","Department for Business, Innovation and Skills",08/02/2011,Outsourced Programme Management Services,Knowledge and Innovation Group - Innovation,MARY-LOUISE CLARK ASSOCIATES LTD,1018641,2364
"Department for Business, Innovation and Skills","Department for Business, Innovation and Skills",08/02/2011,Other Accommodation Charges (Programme),Market and Frameworks Group - Consumer and Competition Policy,TARGETSPACE LTD T/A TARGETSPACE SERVICED OFFICES,1018668,15.34
"Department for Business, Innovation and Skills","Department for Business, Innovation and Skills",08/02/2011,SL DS Utilisation,Knowledge and Innovation Group - Learners,FINANCE FOR HIGHER EDUCATION,1018595,76753.35
"Department for Business, Innovation and Skills","Department for Business, Innovation and Skills",08/02/2011,SL DS Utilisation,Knowledge and Innovation Group - Learners,HONOURS TRUSTEES LTD,1018596,161671.52
"Department for Business, Innovation and Skills","Department for Business, Innovation and Skills",08/02/2011,SL DS Utilisation,Knowledge and Innovation Group - Learners,CLUB 24 LTD t/a VENTURA,1018597,9956.1
"Department for Business, Innovation and Skills","Department for Business, Innovation and Skills",08/02/2011,Criminal Law and Prosecution Work,"Legal, People & Communications Group - Legal",CHRISTOPHER CONVEY,1018548,3391.32
"Department for Business, Innovation and Skills","Department for Business, Innovation and Skills",08/02/2011,Criminal Law and Prosecution Work,"Legal, People & Communications Group - Legal",SEVDA MUSA,1018525,214.44
"Department for Business, Innovation and Skills","Department for Business, Innovation and Skills",08/02/2011,Criminal Law and Prosecution Work,"Legal, People & Communications Group - Legal",ARTHUR JONES,1018560,133.45
"Department for Business, Innovation and Skills","Department for Business, Innovation and Skills",08/02/2011,Outsourced Programme Management Services,"Legal, People & Communications Group - Communications Directorate",BADENOCH AND CLARK LTD,1018592,1864.14
"Department for Business, Innovation and Skills","Department for Business, Innovation and Skills",08/02/2011,Sponsorship Support,Chief Economic Advisor &BRE Group - Strategic Policy Analysis,ROYAL INSTITUTE OF CHARTERED SURVEYORS,1018728,33844.83
"Department for Business, Innovation and Skills","Department for Business, Innovation and Skills",08/02/2011,Telecommunications,Business & Skills Group - Advanced Manufacturing Industries,VODAFONE LTD,1018706,23.71
"Department for Business, Innovation and Skills","Department for Business, Innovation and Skills",08/02/2011,Telecommunications,Business & Skills Group - Advanced Manufacturing Industries,VODAFONE LTD,1018706,52.26
"Department for Business, Innovation and Skills","Department for Business, Innovation and Skills",08/02/2011,PPM (Project & Programme Management) Training,Business & Skills Group - Advanced Manufacturing Industries,CATALYST BUSINESS DYNAMICS LTD,1018699,600
"Department for Business, Innovation and Skills","Department for Business, Innovation and Skills",08/02/2011,Publications,Business & Skills Group - Advanced Manufacturing Industries,JONES YARRELL LEADENHALL,1018392,13.96
"Department for Business, Innovation and Skills","Department for Business, Innovation and Skills",08/02/2011,Hire of Agency Staff (Clerical/Secretariat/Other),Business & Skills Group - Enterprise Directorate,ADECCO UK LTD,1018710,695.78
"Department for Business, Innovation and Skills","Department for Business, Innovation and Skills",08/02/2011,Coaching,Business & Skills Group - Information Economy,SMARTER NETWORKING LTD,1018734,1500
"Department for Business, Innovation and Skills","Department for Business, Innovation and Skills",08/02/2011,Mobile Phones,Business & Skills Group - Information Economy,VODAFONE LTD,1018744,0.22
"Department for Business, Innovation and Skills","Department for Business, Innovation and Skills",08/02/2011,Mobile Phones,Business & Skills Group - Information Economy,VODAFONE LTD,1018744,6.97
"Department for Business, Innovation and Skills","Department for Business, Innovation and Skills",08/02/2011,Hire of Agency Staff (Professional/Management),Finance & Commercial Group - Finance Group,MICHAEL PAGE INTERNATIONAL RECRUITMENT LTD,1018567,2026.08
"Department for Business, Innovation and Skills","Department for Business, Innovation and Skills",08/02/2011,Professional Training,Finance & Commercial Group - Finance Group,"Personal Expense, Name Witheld.",10275581,225
"Department for Business, Innovation and Skills","Department for Business, Innovation and Skills",08/02/2011,Corporate Management Consultancy,Finance & Commercial Group - Finance Group,HAYS SPECIALIST RECRUITMENT LTD,1017707,3828
"Department for Business, Innovation and Skills","Department for Business, Innovation and Skills",08/02/2011,Corporate Management Consultancy,Finance & Commercial Group - Finance Group,HAYS SPECIALIST RECRUITMENT LTD,1018438,3828
"Department for Business, Innovation and Skills","Department for Business, Innovation and Skills",08/02/2011,Rail Fares,Finance & Commercial Group - Information and Workplace Strategies,"Personal Expense, Name Witheld.",10275591,27.4
"Department for Business, Innovation and Skills","Department for Business, Innovation and Skills",08/02/2011,Typing and Word Processing Services,Knowledge and Innovation Group - Higher Education Admin,THE STATIONERY OFFICE LTD,1018725,72.74
"Department for Business, Innovation and Skills","Department for Business, Innovation and Skills",08/02/2011,Professional Subscriptions,Knowledge and Innovation Group - Innovation,"Personal Expense, Name Witheld.",10275582,122
"Department for Business, Innovation and Skills","Department for Business, Innovation and Skills",08/02/2011,Rail Fares Overseas,Knowledge and Innovation Group - Research Base,"Personal Expense, Name Witheld.",10275583,2.96
